Cogmind - Beta 15 --- EXPLORER MODE // 2025.09.28 @ 14:47:42 // Winter2019/RPGLIKE Player: RR-3MY Result: Destroyed by B-99 Colossus with Linear Accelerator Performance ------------- Evolutions (9) 4500 Regions Visited (27) 5400 Robots Destroyed (127) 635 Value Destroyed (13385) 13385 Prototype IDs (66) 1320 Alien Tech Used (0) 0 Bonus (16758) 16758 TOTAL SCORE: 41998 Bonus ------- High Alert Combat Kills 325 Follower Combat Kills 11435 Entered Garrisons 1600 Used RIF Installer 3500 Entered DSFs 500 Built Enhanced Grunts 300 Friendly Fire -902 Cogmind --------- Core Integrity 0/1100 Matter 107/300 Energy 190/190 System Corruption 5% Temperature Cool (0) Movement Hovering (112) Ox1 Location -1/Access Parts ------- > --- POWER (2) -------- Backup Power III Light Quantum Reactor > --- PROPULSION (6) --- Antigrav System Antigrav System Antigrav System Antigrav System > --- UTILITY (13) ----- Light Humpback Quantum Shading Machine Improved Sensor Array Advanced Signal Interpreter Long-range Terrain Scanner Centrium Light Armor Plating Relay Coupler [Cutter] (80) Relay Coupler [Brawler] (89) Relay Coupler [Demolisher] (35) Relay Coupler [Specialist] (17) > --- WEAPON (3) ------- Fusion Bomb Launcher Improved Remote Datajack Molecular Scythe > --- INVENTORY (23) --- Stasis Canceller Authchip [R/NC] Relay Coupler [NC] (108) Relay Coupler [Specialist] (76) Relay Coupler [Proto] (38) Relay Coupler [Proto] (38) Relay Coupler [Proto] (44) Relay Coupler [Proto] (44) Relay Coupler [Proto] (44) Relay Coupler [Proto] (44) KE Penetrator Peak State ------------ > --- POWER ------------ Backup Power III Light Quantum Reactor > --- PROPULSION ------- Antigrav System Antigrav System Antigrav System Antigrav System Improved Antigrav System > --- UTILITY ---------- Light Humpback Quantum Shading Machine Improved Sensor Array Advanced Signal Interpreter Long-range Terrain Scanner Centrium Light Armor Plating Relay Coupler [NC] Relay Coupler [Cutter] Relay Coupler [Brawler] Relay Coupler [Demolisher] Relay Coupler [Specialist] > --- WEAPON ----------- Fusion Bomb Launcher Improved Remote Datajack Molecular Scythe > --- INVENTORY -------- Stasis Canceller Authchip [R/NC] Relay Coupler [NC] Relay Coupler [Specialist] Relay Coupler [Proto] Relay Coupler [Proto] Relay Coupler [Proto] Relay Coupler [Proto] Relay Coupler [Proto] Relay Coupler [Proto] KE Penetrator [Rating: 124] Favorites ----------- Power Light Quantum Reactor Engine Improved Ion Engine Power Core Light Nuclear Core Reactor Light Quantum Reactor Propulsion Armored Wheel Leg Aluminum Leg Wheel Armored Wheel Hover Unit Antigrav System Flight Unit Electron Diverter Utility Light Humpback Device Terrain Scanner Storage Light Humpback Processor Improved Signal Interpreter Hackware Relay Coupler [NC] Protection Gun Armor Weapon Improved Remote Datajack Energy Gun Subdweller Laser Energy Cannon Subdweller Beam Cannon Ballistic Gun KE Penetrator Ballistic Cannon Light Cannon Launcher Fusion Bomb Launcher Special Weapon Improved Remote Datajack Impact Weapon Great Maul Slashing Weapon Molecular Scythe Build | -11 -10 -10 -8 -8 -8 -8 -7 -7 -7 -7 -6 -6 -6 -6 -5 -5 -5 -5 -5 -5 -4 -3 -3 -2 -1 -1 -1 ------- Run | Yrd Mat Sub Mat Gar Mat Gar Fac Gar Fac Gar Fac Gar Fac Gar Fac Ext Cet Arc Hub Gar Fac Res DSF Res Acc Gar Acc Slots Evolved 20 | 6 . 1 3 2 . . 1 1 . . 1 1 . . . 1 . . . . 1 . 1 . 1 . . Power 1 | . . . 1 . . . . . . . . . . . . . . . . . . . . . . . . Propulsion 5 | 2 . . 1 . . . . . . . . . . . . . . . . . . . 1 . 1 . . Utility 12 | 3 . 1 1 1 . . 1 1 . . 1 1 . . . 1 . . . . 1 . . . . . . Weapon 2 | 1 . . . 1 . . . . . . . . . . . . . . . . . . . . . . . Parts Attached 132 | 9 9 7 10 7 3 1 10 7 8 2 2 5 1 3 7 3 . . 1 2 13 . 7 5 6 2 2 Power 9 | 1 . 1 2 . . . . 1 . . . . . . . . . . . . 2 . 2 . . . . Engine 5 | 1 . 1 2 . . . . . . . . . . . . . . . . . . . 1 . . . . Core 1 | . . . . . . . . . . . . . . . . . . . . . 1 . . . . . . Reactor 3 | . . . . . . . . 1 . . . . . . . . . . . . 1 . 1 . . . . Propulsion 14 | 2 4 . 1 . . . . . . . . . . . . . . . . . 2 . 4 . 1 . . Treads . | . . . . . . . . . . . . . . . . . . . . . . . . . . . . Leg 4 | 2 1 . . . . . . . . . . . . . . . . . . . 1 . . . . . . Wheel 4 | . 3 . 1 . . . . . . . . . . . . . . . . . . . . . . . . Hover 5 | . . . . . . . . . . . . . . . . . . . . . . . 4 . 1 . . Flight 1 | . . . . . . . . . . . . . . . . . . . . . 1 . . . . . . Utility 88 | 4 2 2 2 4 3 1 10 4 8 2 2 5 1 3 6 3 . . 1 2 9 . 1 5 5 1 2 Device 12 | 2 2 . 1 1 . . . 1 1 . . . . . . . . . . . 2 . . . 1 1 . Storage 1 | . . 1 . . . . . . . . . . . . . . . . . . . . . . . . . Processor 3 | 1 . . 1 . . . . . . . . . . . . . . . . . . . . . . . 1 Hackware 65 | . . . . 1 3 1 8 3 7 2 2 5 1 3 6 3 . . 1 2 7 . 1 5 4 . . Protection 7 | 1 . 1 . 2 . . 2 . . . . . . . . . . . . . . . . . . . 1 Artifact . | . . . . . . . . . . . . . . . . . . . . . . . . . . . . Weapon 21 | 2 3 4 5 3 . . . 2 . . . . . . 1 . . . . . . . . . . 1 . Energy Gun 4 | 1 . 2 1 . . . . . . . . . . . . . . . . . . . . . . . . Energy Cannon 4 | . . 2 1 1 . . . . . . . . . . . . . . . . . . . . . . . Ballistic Gun 5 | 1 1 . 2 . . . . 1 . . . . . . . . . . . . . . . . . . . Ballistic Cannon 1 | . 1 . . . . . . . . . . . . . . . . . . . . . . . . . . Launcher 1 | . . . . . . . . . . . . . . . . . . . . . . . . . . 1 . Special Weapon 4 | . 1 . . 2 . . . 1 . . . . . . . . . . . . . . . . . . . Impact Weapon 1 | . . . 1 . . . . . . . . . . . . . . . . . . . . . . . . Slashing Weapon 1 | . . . . . . . . . . . . . . . 1 . . . . . . . . . . . . Piercing Weapon . | . . . . . . . . . . . . . . . . . . . . . . . . . . . . Special Melee Weapon . | . . . . . . . . . . . . . . . . . . . . . . . . . . . . Unidentified Prototypes 5 | . . . 1 . . . . . . . . . . . 1 . . . . . 3 . . . . . . Parts Lost 2 | . . . . . . . . . . . . 1 . . . . 1 . . . . . . . . . . Power 2 | . . . . . . . . . . . . 1 . . . . 1 . . . . . . . . . . Propulsion . | . . . . . . . . . . . . . . . . . . . . . . . . . . . . Utility . | . . . . . . . . . . . . . . . . . . . . . . . . . . . . Weapon . | . . . . . . . . . . . . . . . . . . . . . . . . . . . . Highest Loss Streak 1 | . . . . . . . . . . . . 1 . . . . 1 . . . . . . . . . . To Critical Strikes 1 | . . . . . . . . . . . . . . . . . 1 . . . . . . . . . . Average Backups 15 | . 2 3 5 11 15 17 20 19 18 17 19 19 20 21 20 14 13 13 12 16 17 13 16 13 8 10 11 Power . | . . . . 1 1 . . . . . . . . . . . . . . . . . . . . . . Propulsion . | . . . . . . . . . . . . . . . . . . . . . . . . . . . . Utility 13 | . 1 1 1 3 6 10 18 18 17 16 18 18 19 21 20 14 13 13 12 16 16 12 15 12 7 9 10 Weapon 1 | . 1 . 2 5 7 5 2 . 1 1 1 1 1 . . . . . . . 1 1 1 1 1 1 1 Tool/Special . | . . . . . . . . . . . . . . . . . . . . . . . . . . . . Unused Backups 18 | . . 1 . 1 . 3 . . . . . . . 2 . . . . . 1 . . . . . 1 9 Power 2 | . . . . . . 1 . . . . . . . 1 . . . . . . . . . . . . . Propulsion 1 | . . . . 1 . . . . . . . . . . . . . . . . . . . . . . . Utility 13 | . . 1 . . . . . . . . . . . 1 . . . . . 1 . . . . . 1 9 Weapon 2 | . . . . . . 2 . . . . . . . . . . . . . . . . . . . . . Tool/Special . | . . . . . . . . . . . . . . . . . . . . . . . . . . . . Average Slot Usage (%) 90 | . 98 97 84 92 91 92 91 93 92 93 91 91 95 94 88 88 85 85 85 85 83 90 88 86 85 85 81 Engine 6 | . 10 9 10 13 12 12 11 7 5 5 5 3 5 5 5 4 4 4 4 4 4 4 4 4 4 4 4 Reactor 2 | . . . . . . . . 2 5 5 5 5 5 5 5 4 . . . . . . 2 4 4 4 4 Wheel 18 | . 24 28 23 26 24 25 23 22 22 22 21 20 20 19 15 14 14 14 14 14 13 13 3 . . . . Hover 1 | . . . . . . . . . . . . . . . . . . . . . . . 12 17 18 20 20 Device 7 | . 28 24 13 14 11 6 1 2 5 2 5 5 5 5 2 1 4 4 4 4 5 9 8 12 12 12 12 Storage 4 | . . 1 6 6 6 6 5 5 5 5 5 5 5 5 5 4 4 4 4 4 4 4 4 4 4 4 4 Processor 1 | . 10 9 7 6 5 . . . . . . . . . . . . . . . . . . . . . 1 Hackware 27 | . . . . . 11 25 24 29 31 35 33 36 40 40 41 42 42 42 42 42 39 36 36 30 29 26 19 Protection 1 | . . 2 7 7 2 . 4 3 . . . . . . . . . . . . . . . . . . 2 Ballistic Gun 5 | . 15 5 5 7 5 4 5 5 5 5 5 5 5 5 5 4 4 4 4 4 4 4 4 4 4 3 1 Special Weapon 3 | . 2 . . . 5 3 5 4 5 5 5 5 5 5 5 4 4 4 4 4 4 4 4 4 4 4 4 Impact Weapon 2 | . . . . 5 5 4 2 4 5 5 5 5 5 5 3 . . . . . . . . . . . . Slashing Weapon 1 | . . . . . . . . . . . . . . . 1 4 4 4 4 4 4 4 4 4 4 4 3 Peak Build Rating 124 | 8 14 28 37 49 41 47 55 68 69 70 70 82 82 84 87 88 88 79 79 79 100 96 116 116 112 116 124 Average Rating 65 | 6 13 18 32 41 39 43 50 59 66 68 68 74 78 82 80 85 79 79 75 76 80 96 108 108 108 112 115 On Entrance 67 | . 8 14 26 36 41 40 47 52 66 69 70 69 82 78 82 82 88 79 79 75 79 96 96 111 107 112 110 Naked Turns . | . . . . . . . . . . . . . . . . . . . . . . . . . . . . Heaviest Build 83 | 10 13 62 70 72 68 64 70 83 80 79 76 79 74 74 74 74 74 59 59 59 73 62 74 73 73 80 83 Greatest Support 91 | 25 41 41 53 58 58 58 58 58 58 58 58 58 58 58 46 46 46 46 46 46 66 66 79 79 91 91 91 Greatest Overweight (x) 1 | . . 1 1 1 1 1 1 1 1 1 1 1 1 1 1 1 1 1 1 1 1 . 1 . . . 1 Average Overweight (x) . | . . . . 1 1 1 1 1 1 1 1 1 1 1 1 1 1 1 1 1 . . . . . . . Largest Inventory Capacity 23 | 3 3 23 23 23 23 23 23 23 23 23 23 23 23 23 23 23 23 23 23 23 23 23 23 23 23 23 23 Average Capacity 21 | 3 3 5 22 23 23 23 23 23 23 23 23 23 23 23 23 23 23 23 23 23 23 23 23 23 23 23 23 Most Carried 23 | 1 3 7 8 23 22 23 23 22 23 20 20 21 21 23 23 17 13 13 13 23 23 13 19 18 12 12 12 Average Carried 15 | . 2 3 6 13 21 18 20 19 18 17 19 19 20 22 20 14 13 13 12 16 17 13 16 13 8 10 11 Final Capacity 23 | 3 3 23 23 23 23 23 23 23 23 23 23 23 23 23 23 23 23 23 23 23 23 23 23 23 23 23 23 Final Carried 23 | 1 3 7 8 22 21 23 17 22 16 20 18 21 20 22 17 13 13 13 12 23 13 13 18 12 7 11 11 Class Distribution -------------------- 25% | Botlord-Mutant 18% | Commander-Mutant 14% | Bothacker-Mutant 7% | Hauler-Mutant 7% | Hauler-Assassin 5% | Hacker-Skirmisher 5% | Hauler-Skirmisher 5% | Botlord-Scout 3% | Commander-Assassin Dominant Class ---------------- Hacker-Skirmisher | -10/Materials Hacker-Skirmisher | -10/Subcaves Hauler-Skirmisher | -8/Materials Hauler-Assassin | -8/Garrison Hauler-Assassin | -8/Materials Hauler-Mutant | -8/Garrison Bothacker-Mutant | -7/Factory Bothacker-Mutant | -7/Garrison Commander-Mutant | -7/Factory Bothacker-Mutant | -7/Garrison Botlord-Mutant | -6/Factory Botlord-Mutant | -6/Garrison Botlord-Mutant | -6/Factory Commander-Mutant | -6/Garrison Commander-Mutant | -5/Factory Botlord-Mutant | -5/Extension Botlord-Mutant | -5/Cetus Botlord-Mutant | -5/Archives Botlord-Mutant | -5/Hub_04(d) Commander-Mutant | -5/Garrison Commander-Assassin | -4/Factory Commander-Assassin | -3/Research Botlord-Mutant | -3/DSF Botlord-Scout | -2/Research Commander-Scout | -1/Access Botlord-Scout | -1/Garrison Botlord-Scout | -1/Access Resources | -11 -10 -10 -8 -8 -8 -8 -7 -7 -7 -7 -6 -6 -6 -6 -5 -5 -5 -5 -5 -5 -4 -3 -3 -2 -1 -1 -1 ----------- Run | Yrd Mat Sub Mat Gar Mat Gar Fac Gar Fac Gar Fac Gar Fac Gar Fac Ext Cet Arc Hub Gar Fac Res DSF Res Acc Gar Acc Matter Collected 6670 | 225 199 157 260 734 . 407 64 677 200 454 . 370 88 211 376 237 . 110 117 218 488 . 124 257 133 488 76 Remotely . | . . . . . . . . . . . . . . . . . . . . . . . . . . . . Salvage Created 4247 | 87 98 621 497 958 . 395 58 . . 54 . 53 . 78 107 173 . 143 . 82 103 . 282 . 120 181 157 Parts 293 | 6 10 49 47 54 . 24 7 2 1 3 4 2 . 2 . 9 . 12 . 2 7 . 3 14 4 12 19 Haulers Intercepted 3 | . 1 . 2 . . . . . . . . . . . . . . . . . . . . . . . . Recyclers Shooed . | . . . . . . . . . . . . . . . . . . . . . . . . . . . . Parts Field Recycled . | . . . . . . . . . . . . . . . . . . . . . . . . . . . . Retrieved Matter . | . . . . . . . . . . . . . . . . . . . . . . . . . . . . Parts Self-Destructed . | . . . . . . . . . . . . . . . . . . . . . . . . . . . . Prevented . | . . . . . . . . . . . . . . . . . . . . . . . . . . . . Kills | -11 -10 -10 -8 -8 -8 -8 -7 -7 -7 -7 -6 -6 -6 -6 -5 -5 -5 -5 -5 -5 -4 -3 -3 -2 -1 -1 -1 ------- Run | Yrd Mat Sub Mat Gar Mat Gar Fac Gar Fac Gar Fac Gar Fac Gar Fac Ext Cet Arc Hub Gar Fac Res DSF Res Acc Gar Acc Combat Hostiles Destroyed 99 | . . 19 11 30 . 10 3 1 1 1 1 1 . . . 2 . 1 . . 1 . 1 4 1 4 7 Melee 3 | . . . . . . . . . 1 . . . . . . . . . . . . . . . . 1 1 Guns 71 | . . 10 5 27 . 10 3 1 . 1 1 1 . . . 2 . 1 . . 1 . 1 4 1 2 . Cannons 14 | . . 6 6 2 . . . . . . . . . . . . . . . . . . . . . . . AOE 7 | . . . . . . . . . . . . . . . . . . . . . . . . . . 1 6 Classes Destroyed 17 | 2 2 3 3 3 . . 1 1 . . . . . . . 1 . 1 . . . . . . . . . Worker 3 | . . . . . . . 1 . . . . . . . . 1 . . . . 1 . . . . . . Builder 1 | . . . . . . . . . . . . . . . . 1 . . . . . . . . . . . Tunneler 1 | 1 . . . . . . . . . . . . . . . . . . . . . . . . . . . Hauler 3 | . 1 . 2 . . . . . . . . . . . . . . . . . . . . . . . . Recycler 2 | 1 . . . . . . . . . . . . . . 1 . . . . . . . . . . . . Operator 4 | . . . . . . . . . . . . . . . . . . 4 . . . . . . . . . Watcher 7 | . 2 . 4 . . . . . . . . . . . . . . . . . . . . . . . 1 Swarmer 28 | . . 4 2 9 . 4 1 . . . 1 1 . . . . . . . . . . . . . 3 3 Cutter 2 | . . . . 2 . . . . . . . . . . . . . . . . . . . . . . . Grunt 26 | . . 4 . 9 . 2 . 1 . . . 1 . 1 . 2 . . . 1 . . . 2 1 1 1 Brawler 2 | . . . 1 1 . . . . . . . . . . . . . . . . . . . . . . . Duelist 1 | . . . . 1 . . . . . . . . . . . . . . . . . . . . . . . Sentry 15 | . . . 7 6 . 1 . . . . . . . . . . . 1 . . . . . . . . . Specialist 2 | . . . . . . . . 1 . 1 . . . . . . . . . . . . . . . . . Hunter 7 | . . . 1 1 . 1 1 . 1 . . . . . . . . . . . . . 1 1 . . . Programmer 10 | . . . . 1 . 2 1 . . 1 . . . . . . . . . . 1 . . 1 . . 3 Subdweller 11 | . . 11 . . . . . . . . . . . . . . . . . . . . . . . . . Thug 1 | . . . . . . . . . . . . 1 . . . . . . . . . . . . . . . Infiltrator 1 | . . . . . . . . . . 1 . . . . . . . . . . . . . . . . . Best Kill Streak 6 | 2 1 3 3 5 . 6 2 1 1 1 1 1 . . 1 2 . 2 . . 2 . 1 3 1 2 4 Combat Bots Only 6 | . . 3 2 5 . 6 2 1 1 1 1 1 . . . 2 . 1 . . 1 . 1 3 1 2 4 Max Kills in Single Turn 3 | 1 1 1 1 2 . 1 1 1 1 1 1 1 . 1 1 1 . 1 . 1 1 . 1 1 1 1 3 Gunslinging 1 | . . . . 1 . . . . . . . . . . . . . . . . . . . . . . . Exploded 3 | . . . . . . . . . . . . . . . . . . . . . . . . . . 1 3 Melee 1 | . . . . . . . . . 1 . . . . . . . . . . . . . . . . 1 1 Uniques/NPCs Destroyed . | . . . . . . . . . . . . . . . . . . . . . . . . . . . . Combat | -11 -10 -10 -8 -8 -8 -8 -7 -7 -7 -7 -6 -6 -6 -6 -5 -5 -5 -5 -5 -5 -4 -3 -3 -2 -1 -1 -1 -------- Run | Yrd Mat Sub Mat Gar Mat Gar Fac Gar Fac Gar Fac Gar Fac Gar Fac Ext Cet Arc Hub Gar Fac Res DSF Res Acc Gar Acc Hostile Shots Fired 1124 | . . 78 47 165 30 63 50 45 19 77 6 20 12 42 7 14 21 5 32 26 63 . 10 65 24 117 86 Missed 382 | . . 27 13 40 10 20 15 15 9 23 2 9 5 13 . 5 4 1 7 4 36 . 2 29 9 48 36 Hits 742 | . . 51 34 125 20 43 35 30 10 54 4 11 7 29 7 9 17 4 25 22 27 . 8 36 15 69 50 Melee 2 | . . . . 2 . . . . . . . . . . . . . . . . . . . . . . . Projectile 740 | . . 51 34 123 20 43 35 30 10 54 4 11 7 29 7 9 17 4 25 22 27 . 8 36 15 69 50 AOE 11 | . . . . 2 . . . . . 1 . 1 . 2 4 . . . . . . . . . . . 1 Critical Strikes 32 | . . 1 . 3 . 3 2 3 . 3 1 . . 2 1 1 1 . . . 2 . . 2 . 3 4 Part Disruptions 2 | . . . . 1 . . . . . . . . . . . . . . . . . . . . . . 1 Damage Taken 9187 | . . 478 380 1019 117 410 318 507 96 675 39 303 45 357 220 172 287 72 335 341 325 . 145 512 189 1030 815 Core 7165 | . . 361 285 802 94 341 225 375 72 537 34 241 32 275 186 132 214 54 266 277 258 . 114 407 146 814 623 Absorbed by Shields 68 | . . . . . . . . . . . . . . . . 28 20 . . . 20 . . . . . . Redirected to Core 5916 | . . 291 258 627 67 238 159 293 63 438 15 190 32 236 110 132 194 54 228 211 218 . 105 336 146 710 565 Ignored by Resistances 7290 | . . 302 229 794 105 301 248 393 88 474 28 226 37 274 151 149 244 59 239 259 325 . 139 416 193 966 651 Regen/Repaired (Parts) 45 | . . . 45 . . . . . . . . . . . . . . . . . . . . . . . . Core Remaining (%) 78 | 100 . 75 . . . 88 . . . 53 . . . 61 . . . . . 96 78 . 65 87 . . . Volleys Fired 788 | 6 17 54 43 76 6 42 40 42 38 37 18 28 5 38 24 24 9 9 13 20 51 . 8 43 21 59 17 Largest 4 | 2 2 4 2 2 1 2 2 2 1 1 1 1 1 1 1 1 1 1 1 1 1 . 1 1 1 1 1 Hottest 280 | 60 100 280 140 140 5 120 85 105 33 33 33 33 7 33 33 33 33 33 7 7 33 . 33 33 33 52 52 Shots Fired 993 | 12 24 110 70 144 6 61 53 46 39 37 18 28 5 38 26 24 9 9 13 22 51 . 8 43 21 59 17 Gun 489 | 12 14 61 41 130 . 49 29 12 2 12 7 1 . 3 8 8 8 1 . 2 18 . 4 30 8 29 . Cannon 93 | . . 48 29 13 . . . 3 . . . . . . . . . . . . . . . . . . . Launcher 11 | . . . . . . . . . . . . . . . . . . . . . . . . . . 4 7 Special 400 | . 10 1 . 1 6 12 24 31 37 25 11 27 5 35 18 16 1 8 13 20 33 . 4 13 13 26 10 Kinetic 382 | 6 14 21 25 123 . 24 16 12 2 12 7 1 . 3 8 8 8 1 . 2 18 . 4 30 8 29 . Thermal 212 | 6 10 89 45 21 . 25 13 3 . . . . . . . . . . . . . . . . . . . Explosive 11 | . . . . . . . . . . . . . . . . . . . . . . . . . . 4 7 Electromagnetic . | . . . . . . . . . . . . . . . . . . . . . . . . . . . . Robot Hit Streak 72 | 6 11 45 72 16 17 14 13 22 31 21 15 29 9 27 42 11 10 7 16 12 35 . 43 47 22 33 34 Robot Miss Streak 4 | 1 1 4 2 3 1 2 1 1 1 2 2 1 . 1 1 1 1 1 1 2 1 . . 1 . 1 . Penetration Max 1 | . . . . . . . . . . . 1 1 . . . . 1 . . . 1 . . 1 . 1 . Secondary Targets 6 | . . . . 5 . . 1 . . . . . . . . . . . . . . . . . . . . Max Gunslinging Chain 1 | . . . . 1 . . 1 . . . . . . . . . . . . . . . . . . . . Shots Hit Robots 849 | 8 9 85 49 115 5 50 46 37 39 32 16 28 5 36 24 24 6 16 13 17 52 . 8 37 21 54 17 Core Hits 220 | 3 6 24 22 47 . 19 7 7 . 8 2 3 . 1 . 4 5 4 . 5 6 . 2 12 3 13 17 Critical Kills 8 | . . 3 . 1 . 1 . . . . . . . . . . . . . 1 . . 1 . 1 . . Critical Parts Destroyed 9 | . . . 1 1 . . . . 1 . . . . . 2 . . . . . 1 . . 1 . 2 . Critical Strikes 20 | . . 5 1 2 . 1 . . 1 . . . . . 2 . . . . 1 1 . 1 1 1 3 . Meltdown 3 | . . 2 . 1 . . . . . . . . . . . . . . . . . . . . . . . Destroy 14 | . . 3 1 1 . 1 . . . . . . . . 1 . . . . 1 1 . 1 1 1 2 . Smash 2 | . . . . . . . . . 1 . . . . . 1 . . . . . . . . . . . . Sever 1 | . . . . . . . . . . . . . . . . . . . . . . . . . . 1 . Melee Attacks 668 | . . . 3 208 9 83 2 78 3 12 . 52 . 72 8 6 . 11 12 38 8 . 11 13 3 23 13 Impact 524 | . . . 3 208 9 83 2 78 3 12 . 52 . 72 2 . . . . . . . . . . . . Slashing 144 | . . . . . . . . . . . . . . . 6 6 . 11 12 38 8 . 11 13 3 23 13 Piercing . | . . . . . . . . . . . . . . . . . . . . . . . . . . . . Sneak Attacks 12 | . . . . . . . . . . . . 1 . . 1 3 . 6 . . 1 . . . . . . Combat Hostiles . | . . . . . . . . . . . . . . . . . . . . . . . . . . . . Follow-up Attacks . | . . . . . . . . . . . . . . . . . . . . . . . . . . . . Damage Inflicted 14884 | 92 118 1769 1118 2269 . 859 486 516 143 814 146 344 . 75 251 494 198 842 38 178 656 . 72 614 148 1196 1448 Guns 8213 | 92 118 818 622 1968 . 829 486 73 45 332 146 41 . 75 178 196 198 22 . 51 480 . 72 614 148 609 . Cannons 1831 | . . 951 496 301 . . . 83 . . . . . . . . . . . . . . . . . . . Explosions 2834 | . . . . . . . . 360 . 482 . 228 . . . . . . . 127 . . . . . 351 1286 Melee 2006 | . . . . . . 30 . . 98 . . 75 . . 73 298 . 820 38 . 176 . . . . 236 162 Ramming . | . . . . . . . . . . . . . . . . . . . . . . . . . . . . Kinetic 6430 | 49 118 204 351 1825 . 361 242 73 45 332 146 41 . 75 178 196 198 22 . 51 480 . 72 614 148 609 . Thermal 3614 | 43 . 1565 767 444 . 468 244 83 . . . . . . . . . . . . . . . . . . . Explosive 2834 | . . . . . . . . 360 . 482 . 228 . . . . . . . 127 . . . . . 351 1286 Electromagnetic . | . . . . . . . . . . . . . . . . . . . . . . . . . . . . Impact 276 | . . . . . . 30 . . 98 . . 75 . . 73 . . . . . . . . . . . . Slashing 1730 | . . . . . . . . . . . . . . . . 298 . 820 38 . 176 . . . . 236 162 Piercing . | . . . . . . . . . . . . . . . . . . . . . . . . . . . . Highest Corruption 5 | . . . . 1 1 3 1 1 1 3 . . . . 2 2 2 2 4 4 . . . . . . 5 Average Corruption 1 | . . . . 1 1 1 1 1 1 2 . . . . 1 2 2 2 2 4 . . . . . . 3 Corruption Purged . | . . . . . . . . . . . . . . . . . . . . . . . . . . . . Corruption Blocked . | . . . . . . . . . . . . . . . . . . . . . . . . . . . . Effects 142 | . . . . . 4 17 4 13 11 11 . . . . 16 22 4 5 7 25 . . . . . . 3 Message Errors 36 | . . . . . . 4 . 2 1 . . . . . 6 8 1 3 2 8 . . . . . . 1 Matter Fused 41 | . . . . . 1 1 2 3 6 4 . . . . 4 5 2 2 1 9 . . . . . . 1 Heat Flow Errors 18 | . . . . . 1 5 . 3 1 2 . . . . 1 2 . . 1 2 . . . . . . . Energy Discharges 15 | . . . . . . 2 1 2 . 1 . . . . 2 1 . . 3 3 . . . . . . . Data Loss (minor) 15 | . . . . . 2 4 1 1 1 3 . . . . . 2 . . . . . . . . . . 1 Data Loss (major) 6 | . . . . . . 1 . 1 . 1 . . . . 1 1 . . . 1 . . . . . . . Misfires 7 | . . . . . . . . 1 1 . . . . . 2 1 . . . 2 . . . . . . . Alerts 3 | . . . . . . . . . 1 . . . . . . 1 1 . . . . . . . . . . Weapon Failures 1 | . . . . . . . . . . . . . . . . 1 . . . . . . . . . . . Overload Shots . | . . . . . . . . . . . . . . . . . . . . . . . . . . . . Overflow Damage 566 | . . 6 17 . . 10 . . 58 . . 15 . . 73 81 . 202 . . 13 . . . . 23 68 Projectiles 23 | . . 6 17 . . . . . . . . . . . . . . . . . . . . . . . . Explosions 28 | . . . . . . . . . . . . . . . . . . . . . . . . . . . 28 Melee 515 | . . . . . . 10 . . 58 . . 15 . . 73 81 . 202 . . 13 . . . . 23 40 Knockbacks . | . . . . . . . . . . . . . . . . . . . . . . . . . . . . Impact . | . . . . . . . . . . . . . . . . . . . . . . . . . . . . Kinetic . | . . . . . . . . . . . . . . . . . . . . . . . . . . . . Secondary . | . . . . . . . . . . . . . . . . . . . . . . . . . . . . Self-Inflicted Damage 786 | . . . . . . 100 . 100 . 200 . 100 . . . 63 . . . 100 . . . . . 83 40 Shots 12 | . . . . . . 1 . 1 . 2 . 1 . . . 1 . . . 1 . . . . . 3 2 Rammed . | . . . . . . . . . . . . . . . . . . . . . . . . . . . . Targets Rammed . | . . . . . . . . . . . . . . . . . . . . . . . . . . . . Kicked . | . . . . . . . . . . . . . . . . . . . . . . . . . . . . Crushed . | . . . . . . . . . . . . . . . . . . . . . . . . . . . . Highest Temperature 585 | . 60 585 370 394 234 373 336 314 163 273 39 15 13 25 249 281 8 . 161 221 20 . . 311 2 17 6 Average Temperature 101 | . 17 127 105 119 123 104 120 116 58 63 17 9 7 12 62 105 4 . 87 99 9 . . 125 2 8 4 Received Heat Transfer 2339 | . . 129 72 522 45 99 39 271 12 126 27 45 36 144 121 35 81 18 141 54 16 . . 90 9 207 . Effects 29 | . . 8 . 8 . 7 2 . . . . . . . 1 1 . . . . . . . 2 . . . Shutdowns 7 | . . 2 . 3 . 2 . . . . . . . . . . . . . . . . . . . . . Energy Bleed 7 | . . 2 . 1 . . 1 . . . . . . . . 1 . . . . . . . 2 . . . Interference 13 | . . 3 . 4 . 4 1 . . . . . . . 1 . . . . . . . . . . . . Short Circuit 1 | . . 1 . . . . . . . . . . . . . . . . . . . . . . . . . Damage (minor) 1 | . . . . . . 1 . . . . . . . . . . . . . . . . . . . . . Siege Activations . | . . . . . . . . . . . . . . . . . . . . . . . . . . . . Martial Activations . | . . . . . . . . . . . . . . . . . . . . . . . . . . . . Shielding Activations . | . . . . . . . . . . . . . . . . . . . . . . . . . . . . Robots Disrupted . | . . . . . . . . . . . . . . . . . . . . . . . . . . . . Combat Hostiles . | . . . . . . . . . . . . . . . . . . . . . . . . . . . . Robots Corrupted 1 | . . . . . . . . . . . . . . . 1 . . . . . . . . . . . . Combat Hostiles . | . . . . . . . . . . . . . . . . . . . . . . . . . . . . Parts Fried 2 | . . . . . . . . . 1 . . . . . 1 . . . . . . . . . . . . Impact Corruptions 7 | . . . . . . 1 . . 2 . . 1 . . 3 . . . . . . . . . . . . Robots Melted 3 | . . 2 . 1 . . . . . . . . . . . . . . . . . . . . . . . Combat Hostiles 3 | . . 2 . 1 . . . . . . . . . . . . . . . . . . . . . . . Parts Melted 6 | . . 4 . 2 . . . . . . . . . . . . . . . . . . . . . . . Heat Transferred 4644 | 100 . 2008 991 608 . 512 275 150 . . . . . . . . . . . . . . . . . . . Parts Sabotaged . | . . . . . . . . . . . . . . . . . . . . . . . . . . . . Parts Stolen . | . . . . . . . . . . . . . . . . . . . . . . . . . . . . Parts Stripped . | . . . . . . . . . . . . . . . . . . . . . . . . . . . . Power Chain Reactions . | . . . . . . . . . . . . . . . . . . . . . . . . . . . . Alert | -11 -10 -10 -8 -8 -8 -8 -7 -7 -7 -7 -6 -6 -6 -6 -5 -5 -5 -5 -5 -5 -4 -3 -3 -2 -1 -1 -1 ------- Run | Yrd Mat Sub Mat Gar Mat Gar Fac Gar Fac Gar Fac Gar Fac Gar Fac Ext Cet Arc Hub Gar Fac Res DSF Res Acc Gar Acc Maximum Alert Level 5 | . . . . 5 2 3 1 2 1 2 1 2 . 2 . . . . . 2 1 . . . . 2 1 Low Security (%) 62 | 100 100 . 100 14 59 26 91 37 97 17 74 32 100 17 100 100 100 100 100 27 89 100 100 100 100 79 14 Level 1 18 | . . . . 12 32 29 8 32 2 22 25 44 . 56 . . . . . 39 10 . . . . 10 85 Level 2 14 | . . . . 24 8 35 . 29 . 59 . 22 . 25 . . . . . 32 . . . . . 9 . Level 3 3 | . . . . 28 . 8 . . . . . . . . . . . . . . . . . . . . . Level 4 1 | . . . . 16 . . . . . . . . . . . . . . . . . . . . . . . Level 5 . | . . . . 3 . . . . . . . . . . . . . . . . . . . . . . . High Security . | . . . . . . . . . . . . . . . . . . . . . . . . . . . . Max Security . | . . . . . . . . . . . . . . . . . . . . . . . . . . . . Peak Influence 1614 | 5 7 . 68 1614 576 736 286 579 225 669 252 474 184 492 189 49 22 20 151 416 275 . 97 141 64 460 302 Initial 576 | . . . . 8 576 31 286 7 225 24 252 . 184 43 189 . . . 1 . 162 . . 44 43 . 207 Average 214 | 1 . . 12 714 191 377 53 329 37 429 111 302 136 289 31 2 1 1 43 293 50 . 47 37 17 154 241 Influence Increases 12536 | 10 40 210 459 1626 63 745 167 912 439 835 168 754 2 622 1046 236 41 46 272 612 1073 . 187 484 145 877 465 Destroy 0b10 Robot/C 4460 | . . 160 220 640 . 260 105 240 195 330 75 255 . 180 210 105 15 15 120 120 450 . 105 225 45 285 105 Destroy 0b10 Robot/NC 203 | 10 15 . 30 . . . 8 . 28 . 8 . . 4 24 24 4 16 8 . 16 . . 4 . . 4 Destroy Leader 786 | . 6 20 112 50 . 16 32 32 80 16 36 48 . 16 56 18 . . 12 24 114 . 16 40 8 16 18 Allied During Kill 1128 | . . . . 6 . 1 13 84 89 112 37 97 . 65 89 36 6 9 46 46 179 . 39 86 17 69 2 Successful Hack 178 | . 16 . 16 6 10 3 3 . 18 . . 8 . 11 24 . . . 28 . 5 . . 12 18 . . Select Force Hacks 30 | . . . 30 . . . . . . . . . . . . . . . . . . . . . . . . Disable Machine 183 | . . . 12 12 . . 3 . 12 3 6 . . 3 69 9 . . 12 . 30 . 3 . 3 3 3 Anti-Garrison Action 2432 | . . . . 650 . 303 . 379 . 266 . 227 . 152 . . . . . 228 113 . . . . 114 . Destroy Structure 2827 | . 3 . 9 217 8 135 3 177 17 108 6 119 2 179 574 44 16 6 46 194 166 . . 105 42 378 273 Partial Spotted 36 | . . . . . . . . . . . . . . 12 . . . . . . . . . . . 12 12 Lose Combat Pursuer 273 | . . 30 30 45 45 27 . . . . . . . . . . . . . . . . 24 12 12 . 48 Influence Decreases 12234 | 10 40 210 441 30 1613 73 889 347 973 231 817 280 395 218 1531 236 41 40 278 196 1489 . 80 495 241 420 620 Entered New Map 3559 | . . . . 10 1038 33 450 7 354 21 397 . 290 38 296 . . . 5 . 254 . . 63 53 . 250 Time Decay 4983 | 10 36 210 441 . 255 . 379 . 487 . 300 . 105 . 737 166 21 40 253 . 860 . . 274 139 . 270 Lost Part 10 | . . . . . . . . . . . . 10 . . . . . . . . . . . . . . . Lost Ally 3047 | . . . . 20 20 40 60 340 132 210 120 270 . 180 369 70 20 . 20 196 173 . 80 158 49 420 100 Purge Threat 635 | . 4 . . . 300 . . . . . . . . . 129 . . . . . 202 . . . . . . Squads Dispatched 52 | . . . 1 . . . 3 . 11 . 1 . 2 . 6 1 . . 4 . 10 . 2 4 6 . 1 Investigation 4 | . . . 1 . . . . . 1 . . . . . . . . . 1 . . . . 1 . . . Extermination 16 | . . . . . . . 3 . 3 . 1 . . . 2 . . . 1 . 3 . . 1 1 . 1 Reinforcement 21 | . . . . . . . . . 4 . . . . . 4 1 . . 1 . 5 . 2 2 2 . . Assault 1 | . . . . . . . . . . . . . . . . . . . . . 1 . . . . . . Garrison 10 | . . . . . . . . . 3 . . . 2 . . . . . 1 . 1 . . . 3 . . Intercept . | . . . . . . . . . . . . . . . . . . . . . . . . . . . . Searches Triggered . | . . . . . . . . . . . . . . . . . . . . . . . . . . . . Construction Impeded 4 | . . . . . . . . . . . . . . . 2 1 . . . . . . . 1 . . . Haulers Reinforced 4 | . . . . . . . . . . . . . . . . . . . . . 2 . . 1 1 . . Active Scanning Responses . | . . . . . . . . . . . . . . . . . . . . . . . . . . . . Cargo Convoy Interrupts 3 | . . . . . . . . . 1 . . . . . 1 . . . . . 1 . . . . . . Alert ID Control Effect 155 | . . . . . . . . . . . . 2 3 8 44 12 3 1 5 9 21 . 2 13 24 8 . Stealth | -11 -10 -10 -8 -8 -8 -8 -7 -7 -7 -7 -6 -6 -6 -6 -5 -5 -5 -5 -5 -5 -4 -3 -3 -2 -1 -1 -1 --------- Run | Yrd Mat Sub Mat Gar Mat Gar Fac Gar Fac Gar Fac Gar Fac Gar Fac Ext Cet Arc Hub Gar Fac Res DSF Res Acc Gar Acc Distress Signals 22 | . 2 . 2 . . . 1 . 3 . . . . . 2 2 1 . 1 . 5 . . . 1 . 2 Communications Jammed . | . . . . . . . . . . . . . . . . . . . . . . . . . . . . Distress Signals . | . . . . . . . . . . . . . . . . . . . . . . . . . . . . Times Spotted 575 | . 3 17 21 35 7 23 16 29 31 38 10 33 5 33 25 19 5 7 21 31 44 . 7 29 17 51 18 Peak Tracking Total 16 | . 1 6 4 4 5 7 4 5 3 8 2 6 2 8 4 3 5 2 3 7 5 . 4 4 5 16 7 Tactical Retreats 16 | . . 1 2 3 2 2 . . . . . . . . . . . . . . . . 1 1 1 . 3 Traps | -11 -10 -10 -8 -8 -8 -8 -7 -7 -7 -7 -6 -6 -6 -6 -5 -5 -5 -5 -5 -5 -4 -3 -3 -2 -1 -1 -1 ------- Run | Yrd Mat Sub Mat Gar Mat Gar Fac Gar Fac Gar Fac Gar Fac Gar Fac Ext Cet Arc Hub Gar Fac Res DSF Res Acc Gar Acc Traps Triggered 98 | . 1 . 1 6 2 5 1 13 5 2 . 17 . 14 4 5 . . . 12 . . 8 . . 2 . Indirectly . | . . . . . . . . . . . . . . . . . . . . . . . . . . . . Trap Hack Attempts . | . . . . . . . . . . . . . . . . . . . . . . . . . . . . Triggered . | . . . . . . . . . . . . . . . . . . . . . . . . . . . . Disarmed 27 | . 10 . 1 . . . . . . . 6 . . . 4 . . . 6 . . . . . . . . Reprogrammed 5 | . . . . . . . . . . . . . . . . . . . 5 . . . . . . . . Reused . | . . . . . . . . . . . . . . . . . . . . . . . . . . . . Traps Extracted . | . . . . . . . . . . . . . . . . . . . . . . . . . . . . Installed . | . . . . . . . . . . . . . . . . . . . . . . . . . . . . Triggered . | . . . . . . . . . . . . . . . . . . . . . . . . . . . . Most Traps Carried 6 | . . . . 6 6 6 . . . . . . . . . . . . . . . . . . . . . Machines | -11 -10 -10 -8 -8 -8 -8 -7 -7 -7 -7 -6 -6 -6 -6 -5 -5 -5 -5 -5 -5 -4 -3 -3 -2 -1 -1 -1 ---------- Run | Yrd Mat Sub Mat Gar Mat Gar Fac Gar Fac Gar Fac Gar Fac Gar Fac Ext Cet Arc Hub Gar Fac Res DSF Res Acc Gar Acc Machines Disabled 118 | . . 1 3 12 . 6 1 8 4 10 2 6 . 6 23 3 1 . 4 7 11 . 1 . 1 7 1 Max in Single Turn 2 | . . 1 1 1 . 2 . 2 . 2 . 2 . 1 . 2 . . 1 2 . . . . . 2 1 Garrison Access 6 | . . . . . . . . . . . . . . . 2 . . . . . 3 . . . 1 . . Garrison Relay 35 | . . . . 5 . 4 . 6 . 5 . 4 . 4 . . . . . 5 . . . . . 2 . Phase Generator 6 | . . . . . . 1 . 1 . 1 . 1 . . . . . . . 1 . . . . . 1 . Energy Cycler 2 | . . . . . . . . . . . . . . . . 2 . . . . . . . . . . . Machines Repaired . | . . . . . . . . . . . . . . . . . . . . . . . . . . . . Machines Dismantled . | . . . . . . . . . . . . . . . . . . . . . . . . . . . . Machines Sabotaged . | . . . . . . . . . . . . . . . . . . . . . . . . . . . . Overloaded Fab Kills . | . . . . . . . . . . . . . . . . . . . . . . . . . . . . Hacking | -11 -10 -10 -8 -8 -8 -8 -7 -7 -7 -7 -6 -6 -6 -6 -5 -5 -5 -5 -5 -5 -4 -3 -3 -2 -1 -1 -1 --------- Run | Yrd Mat Sub Mat Gar Mat Gar Fac Gar Fac Gar Fac Gar Fac Gar Fac Ext Cet Arc Hub Gar Fac Res DSF Res Acc Gar Acc Machines Accessed 116 | . 8 2 13 4 4 3 7 3 13 1 5 2 1 3 9 1 1 . 11 . 15 1 . 4 3 2 . Terminals 80 | . 7 . 8 4 3 3 2 3 9 1 4 2 . 3 6 1 1 . 10 . 8 1 . 2 . 2 . Fabricators 12 | . . . . . . . 3 . 2 . . . . . 1 . . . . . 4 . . 1 1 . . Repair Stations 3 | . . . 2 . . . . . 1 . . . . . . . . . . . . . . . . . . Recycling Units 4 | . 1 . 1 . . . . . . . . . . . . . . . . . 1 . . 1 . . . Scanalyzers 2 | . . . 1 . . . 1 . . . . . . . . . . . . . . . . . . . . Garrison Access 13 | . . . 1 . 1 . 1 . 1 . 1 . 1 . 2 . . . 1 . 2 . . . 2 . . Total Hacks 435 | . 41 4 38 9 15 8 30 11 47 1 15 6 1 6 40 1 1 . 57 . 65 1 . 23 13 2 . Successful 352 | . 31 4 30 5 13 4 27 6 39 1 12 3 1 4 28 1 1 . 49 . 58 1 . 20 12 2 . Failed 83 | . 10 . 8 4 2 4 3 5 8 . 3 3 . 2 12 . . . 8 . 7 . . 3 1 . . Catastrophic 6 | . . . . 1 . 1 . . . . . . . . . . . . . . 3 . . 1 . . . Database Lockouts . | . . . . . . . . . . . . . . . . . . . . . . . . . . . . Manual 195 | . 20 . 15 5 5 5 12 5 15 . 6 3 . 2 14 . 1 . 36 . 35 . . 12 3 1 . Terminals 307 | . 37 . 26 9 13 8 7 11 38 1 13 6 . 6 26 1 1 . 56 . 33 1 . 12 . 2 . Fabricators 84 | . . . . . . . 20 . 6 . . . . . 12 . . . . . 26 . . 9 11 . . Repair Stations 7 | . . . 6 . . . . . 1 . . . . . . . . . . . . . . . . . . Recycling Units 11 | . 4 . 2 . . . . . . . . . . . . . . . . . 3 . . 2 . . . Scanalyzers 4 | . . . 3 . . . 1 . . . . . . . . . . . . . . . . . . . . Garrison Access 18 | . . . 1 . 2 . 2 . 2 . 2 . 1 . 2 . . . 1 . 3 . . . 2 . . Terminal Hacks 174 | . 18 4 13 4 9 4 3 4 25 1 8 3 . 4 9 1 1 . 40 . 17 1 . 3 . 2 . Record 6 | . . 3 . . . . . . . . . . . . . . . . . . 1 . . 2 . . . Part Schematic 5 | . . . . . . . . . . . . . . . . . . . 5 . . . . . . . . Robot Schematic 9 | . . . . . . . 2 . 2 . 1 . . . 1 . . . 1 . 2 . . . . . . Robot Analysis 10 | . 2 . . . . . . . 4 . . . . . 1 . . . . . 3 . . . . . . Prototype ID Bank 14 | . . . 1 . . . . . 1 . . . . . . . . . 12 . . . . . . . . Open Door 7 | . . . . 1 . 1 . 1 . . . 1 . 1 . 1 1 . . . . . . . . . . Open DSF 4 | . . . . . . . . . 1 . 1 . . . . . . . . . 1 1 . . . . . Level Access Points 3 | . 1 . . . . . . . . . . . . . . . . . 1 . 1 . . . . . . Branch Access Points 4 | . 1 . . . 1 . . . 1 . . . . . . . . . 1 . . . . . . . . Emergency Access Points 8 | . 1 . 1 1 . 1 . 1 . . . . . 1 . . . . 1 . . . . . . 1 . Machine Index 7 | . . . . . 1 . . . 1 . 1 . . . 1 . . . 2 . 1 . . . . . . Terminal Index 1 | . . . 1 . . . . . . . . . . . . . . . . . . . . . . . . Repair Station Index 2 | . 1 . . . . . . . 1 . . . . . . . . . . . . . . . . . . Garrison Index 2 | . . . 1 . . . 1 . . . . . . . . . . . . . . . . . . . . Alert Level 1 | . . . . . . . . . . . . . . . . . . . 1 . . . . . . . . Unreport Threat 6 | . 1 . . . 2 . . . . . . . . . 1 . . . . . 2 . . . . . . Locate Traps 6 | . 1 . 1 . . . . . 2 . 1 . . . . . . . 1 . . . . . . . . Disarm Traps 10 | . 3 . 1 . . . . . . . 1 . . 1 2 . . . 2 . . . . . . . . Reprogram Traps 2 | . . . . . . . . . . . . . . . . . . . 2 . . . . . . . . Dispatch Records 8 | . 1 . 2 . . . . . 1 . 1 . . . . . . . 2 . 1 . . . . . . Maintenance Status 1 | . . . . . . . . . 1 . . . . . . . . . . . . . . . . . . Security Status 2 | . 1 . . . 1 . . . . . . . . . . . . . . . . . . . . . . Patrol Status 4 | . . . 1 . . . . . 2 . . . . . . . . . 1 . . . . . . . . Transport Status 1 | . . . . . . . . . 1 . . . . . . . . . . . . . . . . . . Investigation Status 4 | . . . . . . . . . 2 . . . . . . . . . 1 . 1 . . . . . . Extermination Status 2 | . . . . . . . . . 1 . . . . . . . . . 1 . . . . . . . . Reinforcement Status 5 | . . . . . 2 . . . 2 . . . . . . . . . 1 . . . . . . . . Recall Investigation 2 | . . . . . . . . . . . . . . . 1 . . . 1 . . . . . . . . Recall Extermination 2 | . . . . . . . . . 1 . . . . . . . . . . . 1 . . . . . . Hauler Manifests 9 | . 2 . 2 . 1 . . . . . . . . . 1 . . . 2 . 1 . . . . . . Registered Components 4 | . 1 . 1 . 1 . . . . . . . . . . . . . . . 1 . . . . . . Registered Prototypes 2 | . . . . . . . . . . . 1 . . . . . . . . . 1 . . . . . . Zone Layout 12 | . 2 . 1 . . 1 . 1 1 . 1 1 . . 1 . . . 2 . . . . 1 . . . Garrison Registry 3 | . . . . 1 . . . . . 1 . . . 1 . . . . . . . . . . . . . Patrol Navigation 3 | . . . . . . . . 1 . . . 1 . . . . . . . . . . . . . 1 . Security Stations 2 | . . . . 1 . 1 . . . . . . . . . . . . . . . . . . . . . Proto ID Catalog 1 | . . 1 . . . . . . . . . . . . . . . . . . . . . . . . . Fabricator Hacks 57 | . . . . . . . 13 . 2 . . . . . 10 . . . . . 16 . . 8 8 . . Network Status 2 | . . . . . . . 1 . 1 . . . . . . . . . . . . . . . . . . Load Schematic 27 | . . . . . . . 6 . . . . . . . 5 . . . . . 8 . . 4 4 . . Build 28 | . . . . . . . 6 . 1 . . . . . 5 . . . . . 8 . . 4 4 . . Repair Station Hacks 6 | . . . 6 . . . . . . . . . . . . . . . . . . . . . . . . Scan Component 3 | . . . 3 . . . . . . . . . . . . . . . . . . . . . . . . Repair 3 | . . . 3 . . . . . . . . . . . . . . . . . . . . . . . . Recycling Unit Hacks 6 | . 3 . 1 . . . . . . . . . . . . . . . . . 1 . . 1 . . . Process 1 | . 1 . . . . . . . . . . . . . . . . . . . . . . . . . . Report Inventory 4 | . 1 . 1 . . . . . . . . . . . . . . . . . 1 . . 1 . . . Retrieve Matter 1 | . 1 . . . . . . . . . . . . . . . . . . . . . . . . . . Scanalyzer 3 | . . . 2 . . . 1 . . . . . . . . . . . . . . . . . . . . Insert Component 2 | . . . 1 . . . 1 . . . . . . . . . . . . . . . . . . . . Analyze 1 | . . . 1 . . . . . . . . . . . . . . . . . . . . . . . . Garrison Access Hacks 18 | . . . 1 . 2 . 2 . 2 . 2 . 1 . 2 . . . 1 . 3 . . . 2 . . Unlock Access 8 | . . . 1 . 1 . 1 . 1 . 1 . 1 . . . . . 1 . . . . . 1 . . Seal Access 5 | . . . . . . . . . . . . . . . 2 . . . . . 2 . . . 1 . . Coupler Status 5 | . . . . . 1 . 1 . 1 . 1 . . . . . . . . . 1 . . . . . . Unauthorized Hacks 88 | . 10 . 7 1 2 . 8 2 10 . 2 . . . 7 . . . 8 . 21 . . 8 2 . . Terminals 59 | . 9 . 5 1 2 . 3 2 6 . 2 . . . 6 . . . 8 . 9 . . 6 . . . Track 3 | . . . . . . . . 1 . . . . . . . . . . 1 . . . . 1 . . . Botnet 21 | . 6 . . . 1 . 1 1 3 . 1 . . . 3 . . . 2 . 2 . . 1 . . . Disrupt 3 | . . . . 1 . . . . . . . . . . . . . . 1 . . . . 1 . . . Operators 6 | . . . . . 1 . 1 . . . . . . . 1 . . . . . 2 . . 1 . . . Skim 26 | . 3 . 5 . . . 1 . 3 . 1 . . . 2 . . . 4 . 5 . . 2 . . . Fabricators 22 | . . . . . . . 5 . 3 . . . . . 1 . . . . . 10 . . 1 2 . . Report 3 | . . . . . . . . . . . . . . . . . . . . . 2 . . . 1 . . Prioritize 10 | . . . . . . . 2 . 1 . . . . . 1 . . . . . 4 . . 1 1 . . Liberate 3 | . . . . . . . 1 . 1 . . . . . . . . . . . 1 . . . . . . Fabnet 5 | . . . . . . . 2 . 1 . . . . . . . . . . . 2 . . . . . . Haulers 1 | . . . . . . . . . . . . . . . . . . . . . 1 . . . . . . Repair Stations 1 | . . . . . . . . . 1 . . . . . . . . . . . . . . . . . . Mechanics 1 | . . . . . . . . . 1 . . . . . . . . . . . . . . . . . . Recycling Units 5 | . 1 . 1 . . . . . . . . . . . . . . . . . 2 . . 1 . . . Monitor 4 | . 1 . 1 . . . . . . . . . . . . . . . . . 1 . . 1 . . . Recyclers 1 | . . . . . . . . . . . . . . . . . . . . . 1 . . . . . . Scanalyzers 1 | . . . 1 . . . . . . . . . . . . . . . . . . . . . . . . Extract 1 | . . . 1 . . . . . . . . . . . . . . . . . . . . . . . . Garrison Access . | . . . . . . . . . . . . . . . . . . . . . . . . . . . . Data Cores Recovered 1 | . . . . . . . . . . . . . . . . . . . . . 1 . . . . . . Used 1 | . . . . . . . . . . . . . . . . . . . . . 1 . . . . . . Hacking Detections 75 | . 7 . 11 3 3 2 1 2 10 . 3 1 . 2 6 . . . 9 . 10 . . 2 2 1 . Full Trace Events 5 | . 1 . . . . 1 . 1 1 . . . . . . . . . 1 . . . . . . . . Feedback Events 1 | . . . . . . 1 . . . . . . . . . . . . . . . . . . . . . Corruption 1 | . . . . . . 1 . . . . . . . . . . . . . . . . . . . . . Feedback Blocked . | . . . . . . . . . . . . . . . . . . . . . . . . . . . . Robot Schematics Acquired 9 | . . . . . . . 2 . 2 . 1 . . . 1 . . . 1 . 2 . . . . . . Robots Built 50 | . . . . . . . 12 . 2 . . . . . 10 . . . . . 11 . . 7 8 . . Authchips 26 | . . . . . . . 6 . . . . . . . 5 . . . . . 7 . . 4 4 . . Time 1551 | . . . . . . . 469 . 44 . . . . . 156 . . . . . 585 . . 161 136 . . Total Robot Build Rating 303 | . . . . . . . 48 . 8 . . . . . 54 . . . . . 78 . . 51 64 . . Part Schematics Acquired 11 | . . . 6 . . . . . . . . . . . . . . . 5 . . . . . . . . Parts Built . | . . . . . . . . . . . . . . . . . . . . . . . . . . . . Authchips . | . . . . . . . . . . . . . . . . . . . . . . . . . . . . Time . | . . . . . . . . . . . . . . . . . . . . . . . . . . . . Total Part Build Rating . | . . . . . . . . . . . . . . . . . . . . . . . . . . . . Parts Repaired 3 | . . . 3 . . . . . . . . . . . . . . . . . . . . . . . . Time 120 | . . . 120 . . . . . . . . . . . . . . . . . . . . . . . . Parts Recycled . | . . . . . . . . . . . . . . . . . . . . . . . . . . . . Recycled Matter 32 | . 32 . . . . . . . . . . . . . . . . . . . . . . . . . . Retrieved Matter 32 | . 32 . . . . . . . . . . . . . . . . . . . . . . . . . . Retrieved Components . | . . . . . . . . . . . . . . . . . . . . . . . . . . . . Parts Scanalyzed 1 | . . . 1 . . . . . . . . . . . . . . . . . . . . . . . . Part Schematics Acquired 1 | . . . 1 . . . . . . . . . . . . . . . . . . . . . . . . Parts Damaged . | . . . . . . . . . . . . . . . . . . . . . . . . . . . . Bothacking | -11 -10 -10 -8 -8 -8 -8 -7 -7 -7 -7 -6 -6 -6 -6 -5 -5 -5 -5 -5 -5 -4 -3 -3 -2 -1 -1 -1 ------------ Run | Yrd Mat Sub Mat Gar Mat Gar Fac Gar Fac Gar Fac Gar Fac Gar Fac Ext Cet Arc Hub Gar Fac Res DSF Res Acc Gar Acc Used RIF Installer 7 | . . . . 1 . 1 . 1 . 1 . 1 . 1 . . . . . 1 . . . . . . . Coupler Efficiency 1 | . . . . . . . . 1 . . . . . . . . . . . . . . . . . . . Hotswap 1 | . . . . . . . . . . . . . . . . . . . . 1 . . . . . . . Code Merge 1 | . . . . . . . . . . 1 . . . . . . . . . . . . . . . . . Command Fork 1 | . . . . . . . . . . . . . . 1 . . . . . . . . . . . . . Threat Obfuscator 1 | . . . . . . 1 . . . . . . . . . . . . . . . . . . . . . Alert ID Control 1 | . . . . . . . . . . . . 1 . . . . . . . . . . . . . . . Robots Hacked 280 | . . . . . 4 6 12 20 27 19 9 24 4 25 13 13 1 8 11 16 23 . 3 9 9 18 6 Non-combat 61 | . . . . . . . 6 . 10 . 4 . 1 . 5 5 . 6 3 . 7 . . 5 3 1 5 Combat 219 | . . . . . 4 6 6 20 17 19 5 24 3 25 8 8 1 2 8 16 16 . 3 4 6 17 1 Robot Hacks Applied 302 | . . . . . 5 7 14 22 30 19 10 22 4 21 14 13 1 8 12 16 29 . 4 12 11 18 10 parse_system 6 | . . . . . . . . . . . . . . 1 . . 1 1 1 . . . . 1 . 1 . no_distress 5 | . . . . . . . . . . . . . . . . . . 3 . . . . . . 2 . . generate_echo 1 | . . . . . . . . . . . . . . . . . . . . . . . . . 1 . . find_chute 2 | . . . . . . . 1 . . . . . . . 1 . . . . . . . . . . . . deconstruct_machine 1 | . . . . . . . . . . . . . . . 1 . . . . . . . . . . . . ignore_repairs 1 | . . . . . . . . . . . . . . . . . . . . . 1 . . . . . . map_walls 9 | . . . . . . . 2 . 1 . 1 . . . 1 1 . . . . 1 . . . . . 2 randomize_corridors 1 | . . . . . . . . . . . 1 . . . . . . . . . . . . . . . . map_earth 3 | . . . . . . . . . . . 1 . 1 . . . . . . . . . . 1 . . . drop_inventory 10 | . . . . . . . 1 . 2 . 1 . . . 2 . . . 1 . . . . 2 1 . . recall_reinforcements 1 | . . . . . . . . . . . . . . . . . . . . . . . . . 1 . . deconstruct_bot 1 | . . . . . . . . . . . . . . . . . . . . . . . . . . 1 . block_reporting 1 | . . . . . . . 1 . . . . . . . . . . . . . . . . . . . . map_route 10 | . . . . . . . 1 . 2 . . . . . . . . . 1 . 2 . . 1 . . 3 mark_security 3 | . . . . . . . 1 . . . . . . . . . . . . . . . . 1 . . 1 link_fov 5 | . . . . . . . . . . . . . . . . . . . . . 2 . . 1 . 1 1 reboot_propulsion 1 | . . . . . . . . . . . . . . . . . . . . . . . 1 . . . . tweak_propulsion 1 | . . . . . . . . . . . . . . . . . . . . . . . . . . 1 . scatter_targeting 1 | . . . . . . . . . . . . . . . . . . . . . . . . . . 1 . mark_system 2 | . . . . . . . . . . . . . . . . 1 . . . . . . 1 . . . . broadcast_data 1 | . . . . . . . . . . . . . . . . . . . . . 1 . . . . . . disrupt_area 2 | . . . . . 1 . . . . . . . . . . . . . . . 1 . . . . . . spike_heat 1 | . . . . . . . . 1 . . . . . . . . . . . . . . . . . . . overload_power 8 | . . . . . . 1 . . 1 . . . . . . . . . 2 . 3 . . 1 . . . amplify_resonance 18 | . . . . . 1 . . 2 . 2 . 2 . 1 . . . . . 1 . . . . 1 8 . wipe_record 3 | . . . . . 1 . 1 . . . . . . . . . . . . . 1 . . . . . . disable_weapons 5 | . . . . . 1 . . . 1 . . . . . . . . . . . 3 . . . . . . reboot_system 1 | . . . . . . . . . . . . 1 . . . . . . . . . . . . . . . go_dormant 3 | . . . . . . . . . 2 1 . . . . . . . . . . . . . . . . . overwrite_iff 19 | . . . . . . 3 3 5 2 2 . 1 . . . . . . 1 . . . 1 . . 1 . formatsys_low 11 | . . . . . . . . . 3 . . . . . 1 3 . 3 . . 1 . . . . . . formatsys_high 160 | . . . . . 1 3 3 12 16 14 6 18 3 18 8 7 . 1 6 15 13 . 1 4 5 3 3 formatsys_deep 5 | . . . . . . . . 2 . . . . . 1 . 1 . . . . . . . . . 1 . Relay Couplers Released 62 | . . . . 8 . 8 . 10 . 9 . 7 . 6 1 . . . 1 7 2 . . . . 3 . Machine Destruction 58 | . . . . 8 . 8 . 10 . 9 . 7 . 6 . . . . . 7 . . . . . 3 . Programmers 4 | . . . . . . . . . . . . . . . 1 . . . 1 . 2 . . . . . . Attached 38 | . . . . 1 3 1 2 3 7 2 2 5 1 3 1 3 . . 1 2 . . . 1 . . . Merged Code Value 117 | . . . . . . . . . . . . 15 . 50 . . . . . 52 . . . . . . . Fabnet Peak Effective % 6 | . . . . . . . . . . . 6 6 6 6 2 2 2 2 2 2 . 3 3 1 . . . Autooverrided 8 | . . . . . . . . . . . . 2 . 4 . 1 . . . 1 . . . . . . . Robots Rewired 13 | . . . . . . . 1 6 . . . . . 4 . . . . . . . . . . . 2 . Allies Hacked 12 | . . . . . . . 1 . . 1 . . . 1 3 . . . . . . . . 3 2 1 . Hacks Repelled . | . . . . . . . . . . . . . . . . . . . . . . . . . . . . Allies | -11 -10 -10 -8 -8 -8 -8 -7 -7 -7 -7 -6 -6 -6 -6 -5 -5 -5 -5 -5 -5 -4 -3 -3 -2 -1 -1 -1 -------- Run | Yrd Mat Sub Mat Gar Mat Gar Fac Gar Fac Gar Fac Gar Fac Gar Fac Ext Cet Arc Hub Gar Fac Res DSF Res Acc Gar Acc Total Allies 313 | . . . . 2 1 7 19 28 28 18 6 23 3 30 24 17 5 7 8 21 27 . 2 11 13 10 3 Largest Group 46 | . . . . 2 1 2 11 19 37 22 23 28 28 46 46 23 19 23 26 34 34 26 26 23 24 18 5 Highest-Rated Group 1999 | . . . . 78 21 40 341 610 1030 781 804 959 1035 1959 1999 1228 1352 1438 1585 1863 1934 1363 1363 1261 1381 1212 265 Highest-Rated Ally 159 | . . . . 39 21 25 32 95 95 95 90 90 90 119 142 159 159 153 142 142 142 96 96 96 64 148 64 Total Orders 40 | . . . . . . . 2 2 4 5 . 8 . . . 7 . . . 4 3 . 1 3 . . 1 STAY 10 | . . . . . . . 1 . . . . 2 . . . 4 . . . 3 . . . . . . . ROAM 3 | . . . . . . . . 1 . . . . . . . . . . . . 1 . . . . . 1 FOLLOW 8 | . . . . . . . 1 1 . . . 3 . . . 2 . . . 1 . . . . . . . AID 18 | . . . . . . . . . 4 5 . 3 . . . . . . . . 2 . 1 3 . . . TUNNEL 1 | . . . . . . . . . . . . . . . . 1 . . . . . . . . . . . Ally Attacks 1901 | . . . . 37 6 17 35 92 159 93 39 97 24 110 206 49 26 15 51 53 264 . 69 143 149 148 19 Total Damage 60155 | . . . . 343 105 276 712 2626 3113 1941 546 2416 600 2997 10585 1963 1041 646 2387 1871 9191 . 1856 5309 4293 5077 261 Kills 409 | . . . . 2 . 7 6 15 21 22 6 19 3 21 75 23 5 1 17 17 62 . 8 28 28 23 . Allies Corrupted 12 | . . . . . . . 2 . . . . . . . 2 1 . . 1 1 3 . 1 . 1 . . Allies Melted 3 | . . . . . . . . 3 . . . . . . . . . . . . . . . . . . . Intel | -11 -10 -10 -8 -8 -8 -8 -7 -7 -7 -7 -6 -6 -6 -6 -5 -5 -5 -5 -5 -5 -4 -3 -3 -2 -1 -1 -1 ------- Run | Yrd Mat Sub Mat Gar Mat Gar Fac Gar Fac Gar Fac Gar Fac Gar Fac Ext Cet Arc Hub Gar Fac Res DSF Res Acc Gar Acc Active Infowar (turns) 12787 | 92 667 950 1055 2336 348 792 267 358 725 116 458 87 136 86 533 34 . . 515 81 1358 3 65 573 347 431 374 Sensors 6992 | . 601 950 1055 2336 297 . . . . . . . . . . 34 . . . . . . . 567 347 431 374 Terrain 10517 | 92 667 819 1017 269 348 792 267 358 725 116 458 87 136 86 533 . . . 515 81 1358 3 65 573 347 431 374 Seismic 224 | 17 207 . . . . . . . . . . . . . . . . . . . . . . . . . . Robot Analysis Total 10 | . 2 . . . . . . . 4 . . . . . 1 . . . . . 3 . . . . . . Derelict Logs Recovered 1 | . . 1 . . . . . . . . . . . . . . . . . . . . . . . . . Drone Launches . | . . . . . . . . . . . . . . . . . . . . . . . . . . . . Drone Recoveries . | . . . . . . . . . . . . . . . . . . . . . . . . . . . . Exploration | -11 -10 -10 -8 -8 -8 -8 -7 -7 -7 -7 -6 -6 -6 -6 -5 -5 -5 -5 -5 -5 -4 -3 -3 -2 -1 -1 -1 ------------- Run | Yrd Mat Sub Mat Gar Mat Gar Fac Gar Fac Gar Fac Gar Fac Gar Fac Ext Cet Arc Hub Gar Fac Res DSF Res Acc Gar Acc Turns Passed 23887 | 95 667 974 1055 2336 348 1316 989 1707 1414 1092 458 1477 147 1149 1410 1393 309 256 521 1148 1677 3 221 573 347 431 374 Spaces Moved 14553 | 55 504 772 646 1285 141 755 454 1027 843 754 331 746 67 662 895 827 143 137 332 657 1045 4 137 359 149 394 432 Core 5 | 5 . . . . . . . . . . . . . . . . . . . . . . . . . . . Treads . | . . . . . . . . . . . . . . . . . . . . . . . . . . . . Legs 130 | 50 80 . . . . . . . . . . . . . . . . . . . . . . . . . . Wheels 12996 | . 424 772 646 1285 141 755 454 1027 843 754 331 746 67 662 895 827 143 137 332 657 1045 4 49 . . . . Hover 1422 | . . . . . . . . . . . . . . . . . . . . . . . 88 359 149 394 432 Flight . | . . . . . . . . . . . . . . . . . . . . . . . . . . . . Fastest Speed 44 | 50 90 90 90 105 105 105 105 105 105 105 105 105 105 105 105 105 105 105 105 105 90 90 48 48 44 44 44 Average Speed 98 | 113 94 91 104 105 105 105 105 105 105 105 105 105 105 105 105 105 105 105 105 105 104 90 77 48 45 44 56 Slowest Speed 120 | 120 120 105 105 105 105 105 105 105 105 105 105 105 105 105 105 105 105 105 105 105 105 90 108 48 48 44 112 Overloaded Moves . | . . . . . . . . . . . . . . . . . . . . . . . . . . . . Propulsion Burnouts . | . . . . . . . . . . . . . . . . . . . . . . . . . . . . Robots Hopped . | . . . . . . . . . . . . . . . . . . . . . . . . . . . . Potential Cave-ins . | . . . . . . . . . . . . . . . . . . . . . . . . . . . . Cave-ins Triggered . | . . . . . . . . . . . . . . . . . . . . . . . . . . . . Exploration Rate (%) 54 | 4 75 62 70 97 26 90 12 93 28 82 12 86 2 97 28 90 66 81 49 97 33 . 89 9 4 61 18 Regions Visited 27 Branch Regions 5 Pre-discovered Areas 2 | . . 2 . . . . . . . . . . . . . . . . . . . . . . . . . Known Exits Taken 18 | 1 1 1 1 . 1 . 1 . 1 . 1 . 1 . 1 1 1 1 1 . 1 1 . 1 1 . . Unknown Exits Taken . | . . . . . . . . . . . . . . . . . . . . . . . . . . . . Scrap Searched 9 | . . 9 . . . . . . . . . . . . . . . . . . . . . . . . . Spaces Dug 477 | . 4 . 8 156 9 54 2 42 1 . . 30 . 30 5 . . 3 10 21 6 . . 13 3 41 39 Terrain Destroyed 1127 | . 4 6 9 156 9 124 2 116 2 139 1 97 . 30 5 21 1 3 10 92 6 . . 13 3 148 130 Melee 410 | . . . 3 156 9 54 2 42 1 . . 30 . 30 5 . . 3 10 21 6 . . 13 3 13 9 Projectile 19 | . 4 6 6 . . . . . 1 . 1 . . . . . 1 . . . . . . . . . . AOE 698 | . . . . . . 70 . 74 . 139 . 67 . . . 21 . . . 71 . . . . . 135 121 Terrain Rammed . | . . . . . . . . . . . . . . . . . . . . . . . . . . . . Walls Destroyed . | . . . . . . . . . . . . . . . . . . . . . . . . . . . . Machines Disabled . | . . . . . . . . . . . . . . . . . . . . . . . . . . . . Actions | -11 -10 -10 -8 -8 -8 -8 -7 -7 -7 -7 -6 -6 -6 -6 -5 -5 -5 -5 -5 -5 -4 -3 -3 -2 -1 -1 -1 --------- Run | Yrd Mat Sub Mat Gar Mat Gar Fac Gar Fac Gar Fac Gar Fac Gar Fac Ext Cet Arc Hub Gar Fac Res DSF Res Acc Gar Acc Total 22104 | 71 647 937 945 1726 315 1069 924 1477 1356 1011 430 1327 141 961 1341 1329 293 229 482 1053 1586 3 230 704 411 576 530 Wait 5226 | . 105 74 185 33 150 92 398 243 452 185 65 472 59 161 381 465 133 52 104 306 461 . 53 248 230 58 61 Move 14529 | 54 503 771 645 1284 141 754 453 1026 842 753 331 745 67 661 894 826 142 136 331 655 1044 3 136 358 149 393 432 Hop . | . . . . . . . . . . . . . . . . . . . . . . . . . . . . Pick Up 118 | 1 3 6 10 17 . 16 . 11 . 6 . 8 . 12 . . . . . 14 . . 8 . . 6 . Fast Attach 60 | 9 7 6 8 3 4 1 2 3 1 . . . . . 1 . . . . . 6 . 4 . 2 1 2 Attach 60 | . . 1 4 2 . 1 7 5 6 2 1 3 . . 5 3 . . . 1 7 . 3 4 4 . 1 Detach 9 | . . 1 3 1 . . 1 . 1 . . . . . 1 . . . . . . . . . . . 1 Swap 104 | . 6 3 7 30 5 8 4 7 2 2 2 3 2 4 2 2 . . 2 2 1 . 1 3 . 3 3 Drop 77 | 1 6 8 7 4 . 14 1 6 4 1 . 2 . 7 2 . . . . 2 3 . 6 . 1 2 . Fire 788 | 6 17 54 43 76 6 42 40 42 38 37 18 28 5 38 24 24 9 9 13 20 51 . 8 43 21 59 17 Melee 668 | . . . 3 208 9 83 2 78 3 12 . 52 . 72 8 6 . 11 12 38 8 . 11 13 3 23 13 Ram . | . . . . . . . . . . . . . . . . . . . . . . . . . . . . Kick . | . . . . . . . . . . . . . . . . . . . . . . . . . . . . Crush . | . . . . . . . . . . . . . . . . . . . . . . . . . . . . Escape Stasis 90 | . . . . 32 . 32 . 24 . . . . . 2 . . . . . . . . . . . . . Rewire 35 | . . . . . . . . 2 1 8 2 2 1 4 1 3 . 1 . 1 1 . . 3 1 4 . Trap . | . . . . . . . . . . . . . . . . . . . . . . . . . . . . Miscellaneous 340 | . . 13 30 36 . 26 16 30 6 5 11 12 7 . 22 . 9 20 20 14 4 . . 32 . 27 . Route ------- -11/Scrapyard -10/Materials (discovered 5 exits: *Mat x3 / Min / *Sub) -10/Subcaves (discovered 4 exits: *Mat x2 / Rec / *Scr) -8/Materials (discovered 6 exits: *Fac x3 / *Sto x2 / Gar) -8/Garrison (discovered 3 exits: *Mat x3) -8/Materials (discovered 3 exits: *Sto x2 / Gar) -8/Garrison (discovered 3 exits: *Fac x3) -7/Factory (discovered 3 exits: Fac x2 / Gar) -7/Garrison (discovered 4 exits: *Fac x4) -7/Factory (discovered 4 exits: *Fac / *Low x2 / Gar) -7/Garrison (discovered 3 exits: *Fac x3) -6/Factory (discovered 3 exits: *Low x2 / Gar) -6/Garrison (discovered 3 exits: *Fac x3) -6/Factory -6/Garrison (discovered 3 exits: *Fac x3) -5/Factory (discovered 2 exits: *Upp / *Ext) -5/Extension (discovered 3 exits: *Fac x2 / *Cet) -5/Cetus -5/Archives (discovered 3 exits: *Fac / *Hub x2) -5/Hub_04(d) (discovered 5 exits: *Fac x4 / Gar) -5/Garrison (discovered 3 exits: *Fac x3) -4/Factory (discovered 4 exits: *Res x4) -3/Research -3/DSF -2/Research -1/Access -1/Garrison -1/Access (discovered 1 exit: Sur) History --------- Turn | Location | Event 1 | -11/Scrapyard | Upgraded with Propulsion slot (x2) 1 | -11/Scrapyard | Upgraded with Utility slot (x3) 1 | -11/Scrapyard | Upgraded with Weapon slot (x1) 20 | -11/Scrapyard | Identified exit to Materials 20 | -11/Scrapyard | Discovered exit to Materials (range 15) 96 | -11/Scrapyard | Entered Materials 216 | -10/Materials | Identified exit to Mines 464 | -10/Materials | Build established: Hacker-Skirmisher 531 | -10/Materials | Identified exit to Materials 531 | -10/Materials | Discovered exit to Materials (range 3) 758 | -10/Materials | Identified exit to Subcaves 758 | -10/Materials | Discovered exit to Subcaves (range 2) 763 | -10/Materials | Entered Subcaves 764 | -10/Subcaves | Approached by a straggling Scientist 1087 | -10/Subcaves | Scientist uncovered a shortcut to Scraptown 1088 | -10/Subcaves | Identified exit to Scraptown 1106 | -10/Subcaves | A swath of the cavern ceiling suddenly collapsed 1208 | -10/Subcaves | Identified exit to Materials 1208 | -10/Subcaves | Discovered exit to Materials (range 13) 1210 | -10/Subcaves | Visited Clippyterm 1213 | -10/Subcaves | Learned location of Extension (-5) 1213 | -10/Subcaves | Identified exit to Recycling 1219 | -10/Subcaves | Learned location of Zion (-6) 1219 | -10/Subcaves | Met a Zionite searching for "candidates" 1252 | -10/Subcaves | Learned Materials emergency access door positions 1413 | -10/Subcaves | Visited 4L-MR0's lab 1424 | -10/Subcaves | Found Gun Armor 1426 | -10/Subcaves | Attached Gun Armor, gained temporary slots: Weapon x2 1475 | -10/Subcaves | Reached level 2 1503 | -10/Subcaves | Upgraded with Utility slot (x1) 1516 | -10/Subcaves | Ambushed by Subdwellers from Twisted Machinery 1607 | -10/Subcaves | Disturbed a concealed Subdweller 1693 | -10/Subcaves | Discovered exit to Materials (range 6) 1724 | -10/Subcaves | A swath of the cavern ceiling suddenly collapsed 1737 | -10/Subcaves | Entered Materials 1739 | -8/Materials | Reached level 3 1739 | -8/Materials | Reached level 4 1739 | -8/Materials | Reached level 5 1743 | -8/Materials | Upgraded with Power slot (x1) 1743 | -8/Materials | Upgraded with Utility slot (x1) 1791 | -8/Materials | Repaired Sub. Machine Gun 1904 | -8/Materials | Reached level 6 1920 | -8/Materials | Upgraded with Propulsion slot (x1) 2143 | -8/Materials | Identified exit to Factory 2143 | -8/Materials | Discovered exit to Factory (range 15) 2235 | -8/Materials | Build established: Hauler-Skirmisher 2414 | -8/Materials | Reached level 7 2450 | -8/Materials | Identified exit to Storage 2450 | -8/Materials | Discovered exit to Storage (range 14) 2462 | -8/Materials | Discovered exit to Factory (range 15) 2521 | -8/Materials | Learned location of 1 exit from Extension 2678 | -8/Materials | Repaired Broken Sub. Laser 2699 | -8/Materials | Learned location of 2 exits from Factory 2727 | -8/Materials | Repaired Broken Sub. Laser 2791 | -8/Materials | Identified exit to Garrison 2792 | -8/Materials | Entered Garrison 2895 | -8/Garrison | Garrison Relay disabled 2895 | -8/Garrison | Reached level 8 3020 | -8/Garrison | Triggered checkpoint 3106 | -8/Garrison | Triggered checkpoint 3396 | -8/Garrison | Triggered checkpoint 3415 | -8/Garrison | Garrison Relay disabled 3472 | -8/Garrison | Build established: Hauler-Assassin 3561 | -8/Garrison | Identified exit to Materials 3561 | -8/Garrison | Discovered exit to Materials (range 13) 3732 | -8/Garrison | Triggered checkpoint 3742 | -8/Garrison | Reached level 9 3762 | -8/Garrison | Upgraded with Utility slot (x1) 3846 | -8/Garrison | Triggered checkpoint 4118 | -8/Garrison | Garrison Relay disabled 4161 | -8/Garrison | Discovered exit to Materials (range 10) 4250 | -8/Garrison | Rescued a captive Derelict 4251 | -8/Garrison | Rescued a captive Derelict 4476 | -8/Garrison | Triggered checkpoint 4483 | -8/Garrison | Reached level 10 4559 | -8/Garrison | Upgraded with Weapon slot (x1) 4640 | -8/Garrison | Learned Materials security intel 4665 | -8/Garrison | Discovered exit to Materials (range 10) 4722 | -8/Garrison | Triggered checkpoint 4733 | -8/Garrison | Garrison Relay disabled 4775 | -8/Garrison | Installed Relay Interface Framework 4789 | -8/Garrison | Build established: Hauler-Mutant 4890 | -8/Garrison | Triggered checkpoint 4916 | -8/Garrison | Garrison Relay disabled 4916 | -8/Garrison | Reached level 11 5093 | -8/Garrison | Discovered exit to Materials (range 76) 5093 | -8/Garrison | Discovered exit to Materials (range 12) 5093 | -8/Garrison | Discovered exit to Materials (range 66) 5128 | -8/Garrison | Entered Materials 5476 | -8/Materials | Identified exit to Garrison 5476 | -8/Materials | Entered Garrison 5574 | -8/Garrison | Triggered checkpoint 5601 | -8/Garrison | Expanded RIF knowledge: Threat Obfuscation 5645 | -8/Garrison | Garrison Relay disabled 6005 | -8/Garrison | Discovered exit to Factory (range 11) 6059 | -8/Garrison | Rescued a captive Derelict 6106 | -8/Garrison | Triggered checkpoint 6124 | -8/Garrison | Reached level 12 6162 | -8/Garrison | Garrison Relay disabled 6322 | -8/Garrison | Phase Generator disabled 6326 | -8/Garrison | Discovered exit to Factory (range 13) 6334 | -8/Garrison | Learned Factory security intel 6380 | -8/Garrison | Triggered checkpoint 6390 | -8/Garrison | Garrison Relay disabled 6534 | -8/Garrison | Discovered exit to Factory (range 14) 6541 | -8/Garrison | Garrison Relay disabled 6792 | -8/Garrison | Entered Factory 6792 | -7/Factory | Accompanied by 2 allies 6793 | -7/Factory | Identified exit to Factory 6794 | -7/Factory | Reached level 13 6804 | -7/Factory | Upgraded with Utility slot (x1) 6935 | -7/Factory | Build established: Bothacker-Skirmisher 7184 | -7/Factory | Fabricated Y-54 Guardian? 7248 | -7/Factory | Build established: Bothacker-Tank 7381 | -7/Factory | Fabricated Y-54 Guardian (x2) 7449 | -7/Factory | Fabricated Y-54 Guardian (x2) 7517 | -7/Factory | Fabricated Y-54 Guardian (x2) 7585 | -7/Factory | Fabricated Y-54 Guardian (x2) 7606 | -7/Factory | Build established: Bothacker-Mutant 7653 | -7/Factory | Fabricated Y-54 Guardian (x2) 7742 | -7/Factory | Identified exit to Garrison 7781 | -7/Factory | Entered Garrison 7781 | -7/Garrison | Accompanied by 11 allies 7781 | -7/Garrison | Reached level 14 7832 | -7/Garrison | Triggered checkpoint 7869 | -7/Garrison | Triggered checkpoint 7879 | -7/Garrison | Garrison Relay disabled 8000 | -7/Garrison | Assimilated ARC 4a with formatsys_deep 8089 | -7/Garrison | Triggered checkpoint 8123 | -7/Garrison | Garrison Relay disabled 8235 | -7/Garrison | Triggered checkpoint 8246 | -7/Garrison | Triggered checkpoint 8293 | -7/Garrison | Lost 4 allies 8303 | -7/Garrison | Triggered checkpoint 8367 | -7/Garrison | Expanded RIF knowledge: Coupler Efficiency 8426 | -7/Garrison | Reached level 15 8427 | -7/Garrison | Upgraded with Utility slot (x1) 8437 | -7/Garrison | Triggered checkpoint 8449 | -7/Garrison | Garrison Relay disabled 8585 | -7/Garrison | Triggered checkpoint 8587 | -7/Garrison | Garrison Relay disabled 8656 | -7/Garrison | Identified exit to Factory 8656 | -7/Garrison | Discovered exit to Factory (range 10) 8669 | -7/Garrison | Spotted B-75 Beast 8669 | -7/Garrison | Spotted B-75 Beast 8722 | -7/Garrison | Allies destroyed B-75 Beast 8741 | -7/Garrison | Lost 5 allies 8935 | -7/Garrison | Triggered checkpoint 8958 | -7/Garrison | Found embedded Infiltrators 9006 | -7/Garrison | Phase Generator disabled 9006 | -7/Garrison | Discovered exit to Factory (range 12) 9057 | -7/Garrison | Garrison Relay disabled 9298 | -7/Garrison | Discovered exit to Factory (range 12) 9301 | -7/Garrison | Triggered checkpoint 9325 | -7/Garrison | Garrison Relay disabled 9364 | -7/Garrison | Discovered exit to Factory (range 11) 9381 | -7/Garrison | Triggered checkpoint 9381 | -7/Garrison | Assimilated ARC 4b with formatsys_deep 9488 | -7/Garrison | Entered Factory 9488 | -7/Factory | Accompanied by 19 allies 9629 | -7/Factory | Identified exit to Lower Caves 9882 | -7/Factory | Lost 3 allies 10234 | -7/Factory | Build established: Commander-Mutant 10492 | -7/Factory | Discovered exit to Factory (range 7) 10526 | -7/Factory | Cargo convoy interrupted 10687 | -7/Factory | Fabricated Y-54 Guardian (x2) 10771 | -7/Factory | Identified exit to Garrison 10820 | -7/Factory | Reached level 16 10902 | -7/Factory | Entered Garrison 10902 | -7/Garrison | Accompanied by 19 allies 10907 | -7/Garrison | Lost 6 allies 10925 | -7/Garrison | Phase Generator disabled 11050 | -7/Garrison | Triggered checkpoint 11095 | -7/Garrison | Garrison Relay disabled 11140 | -7/Garrison | Triggered checkpoint 11148 | -7/Garrison | Triggered checkpoint 11150 | -7/Garrison | Triggered checkpoint 11201 | -7/Garrison | Lost 7 allies 11202 | -7/Garrison | Build established: Bothacker-Mutant 11276 | -7/Garrison | Triggered checkpoint 11289 | -7/Garrison | Garrison Relay disabled 11315 | -7/Garrison | Discovered exit to Factory (range 14) 11355 | -7/Garrison | Discovered exit to Factory (range 30) 11355 | -7/Garrison | Discovered exit to Factory (range 72) 11355 | -7/Garrison | Discovered exit to Factory (range 16) 11407 | -7/Garrison | Heavy support dispatched to Factory 11583 | -7/Garrison | Lost 3 allies 11588 | -7/Garrison | Found embedded Infiltrators 11608 | -7/Garrison | Expanded RIF knowledge: Code Merge 11660 | -7/Garrison | Triggered checkpoint 11686 | -7/Garrison | Garrison Relay disabled 11693 | -7/Garrison | Garrison Relay disabled 11828 | -7/Garrison | Garrison Relay disabled 11845 | -7/Garrison | Triggered checkpoint 11910 | -7/Garrison | Build established: Botlord-Mutant 11994 | -7/Garrison | Entered Factory 11994 | -6/Factory | Accompanied by 22 allies 11996 | -6/Factory | Reached level 17 11996 | -6/Factory | Upgraded with Utility slot (x1) 12128 | -6/Factory | Reached level 18 12197 | -6/Factory | Identified exit to Lower Caves 12197 | -6/Factory | Discovered exit to Lower Caves (range 15) 12232 | -6/Factory | Discovered exit to Lower Caves (range 16) 12263 | -6/Factory | Lost 3 allies 12452 | -6/Factory | Identified exit to Garrison 12452 | -6/Factory | Entered Garrison 12452 | -6/Garrison | Accompanied by 22 allies 12532 | -6/Garrison | Triggered checkpoint 12548 | -6/Garrison | Garrison Relay disabled 12597 | -6/Garrison | Rescued a captive Derelict 12598 | -6/Garrison | Rescued a captive Derelict 12642 | -6/Garrison | Triggered checkpoint 12646 | -6/Garrison | Triggered checkpoint 12646 | -6/Garrison | Triggered checkpoint 12676 | -6/Garrison | Triggered checkpoint 12707 | -6/Garrison | Lost 5 allies 12749 | -6/Garrison | Identified exit to Factory 12749 | -6/Garrison | Discovered exit to Factory (range 9) 12768 | -6/Garrison | Triggered checkpoint 12777 | -6/Garrison | Garrison Relay disabled 12828 | -6/Garrison | Lost 6 allies 12910 | -6/Garrison | Reached level 19 12946 | -6/Garrison | Upgraded with Utility slot (x1) 12953 | -6/Garrison | Local machine network offline 12972 | -6/Garrison | Triggered checkpoint 12986 | -6/Garrison | Expanded RIF knowledge: Alert ID Control 13126 | -6/Garrison | Phase Generator disabled 13164 | -6/Garrison | Discovered exit to Factory (range 10) 13216 | -6/Garrison | Triggered checkpoint 13216 | -6/Garrison | Garrison Relay disabled 13427 | -6/Garrison | Triggered checkpoint 13450 | -6/Garrison | Garrison Relay disabled 13491 | -6/Garrison | Discovered exit to Factory (range 13) 13497 | -6/Garrison | Spotted B-75 Beast 13509 | -6/Garrison | Assimilated Beast 5a with formatsys_high 13543 | -6/Garrison | Found Relay Coupler [Proto] 13545 | -6/Garrison | Found Relay Coupler [Proto] 13929 | -6/Garrison | Entered Factory 13929 | -6/Factory | Accompanied by 25 allies 13956 | -6/Factory | Garrison activated, responded to threat 14068 | -6/Factory | Identified exit to Garrison 14076 | -6/Factory | Entered Garrison 14076 | -6/Garrison | Accompanied by 28 allies 14150 | -6/Garrison | Triggered checkpoint 14170 | -6/Garrison | Found embedded Infiltrators 14173 | -6/Garrison | Garrison Relay disabled 14262 | -6/Garrison | Triggered checkpoint 14264 | -6/Garrison | Triggered checkpoint 14264 | -6/Garrison | Triggered checkpoint 14270 | -6/Garrison | Triggered checkpoint 14378 | -6/Garrison | Triggered checkpoint 14429 | -6/Garrison | Garrison Relay disabled 14453 | -6/Garrison | Identified exit to Factory 14453 | -6/Garrison | Discovered exit to Factory (range 10) 14473 | -6/Garrison | Spotted B-75 Beast 14474 | -6/Garrison | Assimilated Beast 5b with formatsys_high 14667 | -6/Garrison | Build established: Commander-Mutant 14752 | -6/Garrison | Discovered exit to Factory (range 14) 14776 | -6/Garrison | Triggered checkpoint 14776 | -6/Garrison | Assimilated ARC 5a with formatsys_deep 14788 | -6/Garrison | Expanded RIF knowledge: Command Fork 14798 | -6/Garrison | Discovered exit to Factory (range 65) 14798 | -6/Garrison | Discovered exit to Factory (range 56) 14798 | -6/Garrison | Discovered exit to Factory (range 15) 14810 | -6/Garrison | Garrison Relay disabled 14816 | -6/Garrison | Triggered checkpoint 14944 | -6/Garrison | Triggered checkpoint 14953 | -6/Garrison | Local machine network offline 14970 | -6/Garrison | Garrison Relay disabled 15030 | -6/Garrison | Spotted Striker 15051 | -6/Garrison | Rewired Executioner 15055 | -6/Garrison | Rewired Executioner 15064 | -6/Garrison | Allies destroyed Striker 15093 | -6/Garrison | Lost 3 allies 15225 | -6/Garrison | Entered Factory 15225 | -5/Factory | Accompanied by 43 allies 15226 | -5/Factory | Identified exit to Extension 15227 | -5/Factory | Reached level 20 15678 | -5/Factory | Identified exit to Upper Caves 15678 | -5/Factory | Discovered exit to Upper Caves (range 13) 15795 | -5/Factory | Spotted B-75 Beast 15796 | -5/Factory | Assimilated Beast 6a with formatsys_high 15866 | -5/Factory | Reached level 21 15953 | -5/Factory | P-70 Sage assimilated allied Guardian 4x 16052 | -5/Factory | Cargo convoy interrupted 16226 | -5/Factory | Fabricated E-15 Imp (x2) 16252 | -5/Factory | Fabricated E-15 Imp (x2) 16278 | -5/Factory | Fabricated E-15 Imp (x2) 16307 | -5/Factory | Fabricated Y-64 Sentinel (x2) 16336 | -5/Factory | Fabricated Y-64 Sentinel (x2) 16579 | -5/Factory | Lost 26 allies 16635 | -5/Factory | Entered Extension 16635 | -5/Extension | Accompanied by 13 allies 16636 | -5/Extension | Identified exit to Cetus 16746 | -5/Extension | Build established: Botlord-Mutant 16855 | -5/Extension | Spotted B-75 Beast 16862 | -5/Extension | Allies destroyed B-75 Beast 16867 | -5/Extension | Assimilated ARC 6a with formatsys_deep 16868 | -5/Extension | Spotted B-75 Beast 16872 | -5/Extension | Allies destroyed B-75 Beast 16894 | -5/Extension | Identified exit to Factory 16894 | -5/Extension | Discovered exit to Factory (range 3) 16926 | -5/Extension | Local machine network offline 17070 | -5/Extension | Discovered exit to Factory (range 15) 17259 | -5/Extension | Reached level 22 17260 | -5/Extension | Upgraded with Utility slot (x1) 17529 | -5/Extension | Lost 8 allies 17679 | -5/Extension | Energy Cycler disabled 17679 | -5/Extension | Rescued a captive Derelict 17680 | -5/Extension | Rescued a captive Derelict 17682 | -5/Extension | Rescued A7 17686 | -5/Extension | Rescued a captive Derelict 17686 | -5/Extension | Rescued a captive Derelict 17688 | -5/Extension | Disrupted transfer network 17697 | -5/Extension | Rescued a captive Derelict 18028 | -5/Extension | Entered Cetus 18028 | -5/Cetus | Accompanied by 15 allies (A7) 18033 | -5/Cetus | Acquired a Cetus Manufacturing Module code from A7 18043 | -5/Cetus | Spotted Cetus Guard 18043 | -5/Cetus | Spotted Cetus Guard 18046 | -5/Cetus | Spotted Cetus Guard 18046 | -5/Cetus | Spotted Cetus Guard 18058 | -5/Cetus | Allies destroyed Cetus Guard 18058 | -5/Cetus | Allies destroyed Cetus Guard 18070 | -5/Cetus | Allies destroyed Cetus Guard 18070 | -5/Cetus | Allies destroyed Cetus Guard 18119 | -5/Cetus | Started Cetus Manufacturing Module 18144 | -5/Cetus | Manufactured an Enhanced Grunt 18169 | -5/Cetus | Manufactured an Enhanced Grunt 18194 | -5/Cetus | Manufactured an Enhanced Grunt 18219 | -5/Cetus | Manufactured an Enhanced Grunt 18244 | -5/Cetus | Manufactured an Enhanced Grunt 18275 | -5/Cetus | Identified exit to Archives 18275 | -5/Cetus | Discovered exit to Archives (range 15) 18337 | -5/Cetus | Entered Archives 18337 | -5/Archives | Accompanied by 19 allies (A7) 18375 | -5/Archives | Discovered exit to Factory (range 16) 18411 | -5/Archives | Identified exit to Hub_04(d) 18411 | -5/Archives | Discovered exit to Hub_04(d) (range 15) 18516 | -5/Archives | Discovered exit to Hub_04(d) (range 15) 18593 | -5/Archives | Entered Hub_04(d) 18593 | -5/Hub_04(d) | Accompanied by 23 allies 18673 | -5/Hub_04(d) | Discovered exit to Factory (range 20) 18960 | -5/Hub_04(d) | Garrison activated, responded to threat 19061 | -5/Hub_04(d) | Identified exit to Garrison 19114 | -5/Hub_04(d) | Entered Garrison 19114 | -5/Garrison | Accompanied by 25 allies 19116 | -5/Garrison | Reached level 23 19144 | -5/Garrison | Local machine network offline 19154 | -5/Garrison | Garrison Relay disabled 19189 | -5/Garrison | Lost 4 allies 19234 | -5/Garrison | Triggered checkpoint 19264 | -5/Garrison | Triggered checkpoint 19302 | -5/Garrison | Triggered checkpoint 19320 | -5/Garrison | Expanded RIF knowledge: Hotswap 19331 | -5/Garrison | Garrison Relay disabled 19350 | -5/Garrison | Found embedded Infiltrators 19357 | -5/Garrison | Discovered exit to Factory (range 8) 19430 | -5/Garrison | Phase Generator disabled 19475 | -5/Garrison | Garrison Relay disabled 19480 | -5/Garrison | Triggered checkpoint 19491 | -5/Garrison | Garrison Relay disabled 19511 | -5/Garrison | Discovered exit to Factory (range 6) 19600 | -5/Garrison | Triggered checkpoint 19608 | -5/Garrison | Triggered checkpoint 19673 | -5/Garrison | Spotted B-75 Beast 19741 | -5/Garrison | Lost 5 allies 19751 | -5/Garrison | Found Fusion Bomb Launcher 19844 | -5/Garrison | Discovered exit to Factory (range 10) 19856 | -5/Garrison | Triggered checkpoint 19893 | -5/Garrison | Garrison Relay disabled 19920 | -5/Garrison | Build established: Commander-Mutant 20262 | -5/Garrison | Entered Factory 20262 | -4/Factory | Accompanied by 29 allies 20264 | -4/Factory | Reached level 24 20288 | -4/Factory | Upgraded with Utility slot (x1) 20717 | -4/Factory | Fabricated Y-72 Warden (x2) 20762 | -4/Factory | Fabricated X-72 Disruptor? 20862 | -4/Factory | Lost 4 allies 20916 | -4/Factory | Fabricated Y-72 Warden (x2) 20981 | -4/Factory | Fabricated Y-72 Warden (x2) 21055 | -4/Factory | Lost 5 allies 21143 | -4/Factory | Fabricated I-25 Savior (x1) 21296 | -4/Factory | Garrison activated, responded to threat 21300 | -4/Factory | Build established: Commander-Assassin 21304 | -4/Factory | Reached level 25 21335 | -4/Factory | Lost 4 allies 21412 | -4/Factory | Fabricated Y-72 Warden (x2) 21479 | -4/Factory | Spotted B-86 Titan 21498 | -4/Factory | Allies destroyed B-86 Titan 21526 | -4/Factory | Cargo convoy interrupted 21575 | -4/Factory | Lost 5 allies 21623 | -4/Factory | Identified exit to Research 21939 | -4/Factory | Entered Research 21939 | -3/Research | Accompanied by 26 allies 21941 | -3/Research | Reached level 26 21941 | -3/Research | Identified exit to DSF 21942 | -3/Research | Entered DSF 21942 | -3/DSF | Accompanied by 26 allies 21942 | -3/DSF | Upgraded with Propulsion slot (x1) 21944 | -3/DSF | Reached level 27 21962 | -3/DSF | Additional patrols routed to DSF 21971 | -3/DSF | Identified exit to Research 21971 | -3/DSF | Discovered exit to Research (range 24) 22026 | -3/DSF | Lost 4 allies 22095 | -3/DSF | Lost 3 allies 22163 | -3/DSF | Entered Research 22163 | -2/Research | Accompanied by 19 allies 22165 | -2/Research | Reached level 28 22273 | -2/Research | Reached level 29 22299 | -2/Research | Fabricated Y-72 Warden (x2) 22331 | -2/Research | Fabricated O-32 Director (x1) 22366 | -2/Research | P-80 Master assimilated allied Warden 7e 22371 | -2/Research | Fabricated X-72 Disruptor (x2) 22395 | -2/Research | Allied Derelicts emerged from ambush trap array 22400 | -2/Research | Lost 3 allies 22406 | -2/Research | Fabricated Y-72 Warden (x2) 22579 | -2/Research | Identified exit to Access 22579 | -2/Research | Discovered exit to Access (range 20) 22665 | -2/Research | Lost 8 allies 22736 | -2/Research | Entered Access 22736 | -1/Access | Accompanied by 15 allies 22738 | -1/Access | Reached level 30 22738 | -1/Access | Reached level 31 22776 | -1/Access | Upgraded with Propulsion slot (x1) 22799 | -1/Access | Garrison activated, responded to threat 22811 | -1/Access | Fabricated Y-72 Warden (x2) 22846 | -1/Access | Fabricated Y-72 Warden (x2) 22881 | -1/Access | Fabricated Y-72 Warden (x2) 22916 | -1/Access | Fabricated Y-72 Warden (x2) 22953 | -1/Access | Lost 3 allies 22977 | -1/Access | Garrison activated, responded to threat 23002 | -1/Access | Lost 4 allies 23054 | -1/Access | Identified exit to Garrison 23083 | -1/Access | Entered Garrison 23083 | -1/Garrison | Accompanied by 17 allies 23085 | -1/Garrison | Reached level 32 23094 | -1/Garrison | Garrison Relay disabled 23095 | -1/Garrison | Triggered checkpoint 23143 | -1/Garrison | Rewired B-75 Beast 23146 | -1/Garrison | Rewired B-90 Cyclops 23229 | -1/Garrison | P-80 Master assimilated allied Warden 10c 23239 | -1/Garrison | Found Relay Coupler [Proto] 23241 | -1/Garrison | Found Relay Coupler [Proto] 23242 | -1/Garrison | Found Relay Coupler [Proto] 23243 | -1/Garrison | Found Relay Coupler [Proto] 23273 | -1/Garrison | Triggered checkpoint 23275 | -1/Garrison | Triggered checkpoint 23279 | -1/Garrison | Spotted B-99 Colossus 23296 | -1/Garrison | Build established: Botlord-Scout 23311 | -1/Garrison | Triggered checkpoint 23313 | -1/Garrison | Triggered checkpoint 23319 | -1/Garrison | Allies destroyed B-99 Colossus 23345 | -1/Garrison | Lost 9 allies 23382 | -1/Garrison | Triggered checkpoint 23388 | -1/Garrison | Identified exit to Access 23388 | -1/Garrison | Discovered exit to Access (range 17) 23398 | -1/Garrison | Assimilated ARC 10a with formatsys_deep 23429 | -1/Garrison | Reached level 33 23454 | -1/Garrison | Phase Generator disabled 23467 | -1/Garrison | Lost 6 allies 23471 | -1/Garrison | Garrison Relay disabled 23483 | -1/Garrison | Spotted B-99 Colossus 23514 | -1/Garrison | Entered Access 23514 | -1/Access | Accompanied by 3 allies 23659 | -1/Access | Core integrity fell below 50% 23689 | -1/Access | Identified exit to Surface 23689 | -1/Access | Discovered exit to Surface (range 24) 23835 | -1/Access | Core integrity fell below 20% 23881 | -1/Access | Spotted B-99 Colossus 23888 | -1/Access | Destroyed by B-99 Colossus with Linear Accelerator Last Messages --------------- 23720_ P-80 Master destroyed. 23761_ System corrupted: Matter fused (-6). 23795_ Detecting nearby Garrison Access. 23795_ A-15 Conveyor destroyed. 23805_ ALERT: Security rotation in progress. 23806_ Relay Coupler [NC] blasted off. 23808_ Terminal disabled. 23809_ G9J< 4YFAZW/SGX#J5HH9DK5/< 23839_ The unstable cave ceiling collapses. 23879_ Spectral Interrupter explodes. 23879_ Door malfunctions. 23879_ Emergency Access malfunctions. 23879_ Door malfunctions. 23880_ System corrupted: Component data lost. 23881_ P-80 Master destroyed. 23881_ Slug penetrates Wall. 23881_ Penetrated by Slug. 23884_ Imp. Antigrav System blasted off. 23884_ Penetrated by Slug. [Achievement: Overachiever] Map ----- +----------------------------------------------------+ | #####u#"######"## ### ### *= | | ? ## ###### BB BB ### *= | | ## ######## ###### BB BB ### *! | | ## ######## ###### ### | | ###+###### ######## ###### ### | | ## ##### ######## ###### ### | | ## ##### ##+######## ###### ### | | # #### ######### ###### | | ## # ### ######## ###### | | ## w # + ######## ##########/## | | ##"" + ###! # | | ##"" # ! #### ## | | ##"" # #### ## | | ##T ###/#######%## | | ##"" ### ####### ## ###########+###### | | ##"" ### ####### ## ###### # | | ##"" ### ####### ## ###### # | | ## # # ####### ## ###### * # | | ## ##### ## ###### # | | ## Y #####/## ###### " # | | #? #BB ] # # # """ # | | # #BB p # # " """ # | | ### %! # # # " # | | # ### [ # % # # # | | # #### # # + # # | | ### ###### # %% /@ # # ! # | | ### ###### # # # # # | | ### ###### # + # ############## | | ###?##?### / ; #### ##### ## | | ? ## # [ # ############# ## | | ## # # ############# ## | | ?? ## # # ####?######## ## | | ? #? ########+##### ############# #? | | ? ## ### ## ##### ############# # | | + #####? ##?###?+## ?? | | ? ? #?#### ######## ######? ? | | ? ? ?#?############### ? " ? ?? ? ? | | ? ? ? #########?############## ?? ? | | ??###??##?#?###?##?##########?## ?? ?#####?????? | | ?????#??#######?####?##############?###?#???#?? | | ????#?##?##?######?#########?###########?#?#???##? | | ?????#######?###?##########??#######?#?????#???#?? | | | | | | | | | | | | | | | | | +----------------------------------------------------+ Best States ------------- Heat Dissipation 55 Energy Generation 51 Energy Capacity 355 Matter Stores 300 Matter Capacity 300 Sight Range 18 Robot Scan Range 29 Terrain Scan Range 24 Terrain Scan Density 610 Additional Mass Support 20 Armor Coverage 225 Resistance: KI 50 Resistance: TH 45 Resistance: EX 45 Resistance: EM 35 Resistance: I 35 Resistance: S 35 Resistance: P 35 Utility Shielding 33 Evasion (%) 56 Offensive Hacking 57 Defensive Hacking 25 Relay Coupler Types 9 Relay Coupler Value 529 Authchip Count 11 Trap Extractor Capacity 4 Item Schematics ----------------- Sub. Beam Cannon | -8/Materials | Scanalyzed Adv. Visual Processing Unit | -8/Materials | Extracted Machine Analyzer | -8/Materials | Extracted Great Maul | -8/Materials | Extracted Hvy. Armor Plating | -8/Materials | Extracted Adv. EMP Blaster | -8/Materials | Extracted Adv. Terrain Scanner | -5/Hub_04(d) | Hacked Antimatter Reactor | -5/Hub_04(d) | Hacked Linear Accelerator | -5/Hub_04(d) | Hacked Arm. Heavy Treads | -5/Hub_04(d) | Hacked Lrn. Terrain Scanner | -5/Hub_04(d) | Hacked Robot Schematics ------------------ Y-45 Defender | -7/Factory | Hacked Y-54 Guardian | -7/Factory | Hacked T-07 Excavator | -7/Factory | Hacked I-25 Savior | -7/Factory | Hacked Y-64 Sentinel | -6/Factory | Hacked E-15 Imp | -5/Factory | Hacked X-72 Disruptor | -5/Hub_04(d) | Hacked Y-72 Warden | -4/Factory | Hacked O-32 Director | -4/Factory | Hacked Fabricated ------------ Y-54 Guardian | x2 | -7/Factory | Authchip Y-54 Guardian | x2 | -7/Factory | Authchip Y-54 Guardian | x2 | -7/Factory | Authchip Y-54 Guardian | x2 | -7/Factory | Authchip Y-54 Guardian | x2 | -7/Factory | Authchip Y-54 Guardian | x2 | -7/Factory | Authchip Y-54 Guardian | x2 | -7/Factory | Preloaded E-15 Imp | x2 | -5/Factory | Authchip E-15 Imp | x2 | -5/Factory | Authchip E-15 Imp | x2 | -5/Factory | Authchip Y-64 Sentinel | x2 | -5/Factory | Authchip Y-64 Sentinel | x2 | -5/Factory | Authchip Y-72 Warden | x2 | -4/Factory | Authchip X-72 Disruptor | x2 | -4/Factory | Authchip Y-72 Warden | x2 | -4/Factory | Authchip Y-72 Warden | x2 | -4/Factory | Authchip I-25 Savior | x1 | -4/Factory Y-72 Warden | x2 | -4/Factory | Authchip Y-72 Warden | x2 | -2/Research | Authchip O-32 Director | x1 | -2/Research | Authchip X-72 Disruptor | x2 | -2/Research | Authchip Y-72 Warden | x2 | -2/Research | Authchip Y-72 Warden | x2 | -1/Access | Authchip Y-72 Warden | x2 | -1/Access | Authchip Y-72 Warden | x2 | -1/Access | Authchip Y-72 Warden | x2 | -1/Access | Authchip Repaired ---------- Sub. Machine Gun | 75% | -8/Materials Sub. Laser | 85% | -8/Materials | Broken Sub. Laser | 76% | -8/Materials | Broken Alien Tech Used ----------------- None Achievements -------------- Assimilation Complete Error 47 Factory Defaults Infiltrator Overachiever Prison Break Project G-00 Pwned War Machine Challenges ------------ None RPGLIKE | -11 -10 -10 -8 -8 -8 -8 -7 -7 -7 -7 -6 -6 -6 -6 -5 -5 -5 -5 -5 -5 -4 -3 -3 -2 -1 -1 -1 --------- Run | Yrd Mat Sub Mat Gar Mat Gar Fac Gar Fac Gar Fac Gar Fac Gar Fac Ext Cet Arc Hub Gar Fac Res DSF Res Acc Gar Acc Levels Raised 32 | . . 1 5 4 . 1 1 2 1 . 2 1 . . 2 1 . . . 1 2 1 1 2 2 2 . XP Earned 54717 | 6000 30 1900 7757 5693 20 1778 2291 2503 752 1239 1864 1551 11 815 2655 784 305 203 653 745 2958 2000 1280 3522 2865 2255 288 XP Spent 52225 | 5800 175 1490 7510 5625 . . 3400 2600 . . 2900 3200 . . . 3500 . . . . 5800 . 2550 3260 3015 1400 . Upgrades 79 | 10 3 2 16 13 . . 2 1 . . 1 1 . . . 1 . . . . 7 . 3 10 8 1 . Power Slot 1 | . . . 1 . . . . . . . . . . . . . . . . . . . . . . . . Propulsion Slot 5 | 2 . . 1 . . . . . . . . . . . . . . . . . . . 1 . 1 . . Utility Slot 12 | 3 . 1 1 1 . . 1 1 . . 1 1 . . . 1 . . . . 1 . . . . . . Weapon Slot 2 | 1 . . . 1 . . . . . . . . . . . . . . . . . . . . . . . Core Integrity 10 | . . . 1 5 . . . . . . . . . . . . . . . . . . . 4 . . . Heat Dissipation 5 | . . . . . . . . . . . . . . . . . . . . . . . 1 2 2 . . Energy Generation 4 | . . . . . . . . . . . . . . . . . . . . . . . . 4 . . . Mass Support 3 | 1 . . . 1 . . . . . . . . . . . . . . . . . . 1 . . . . Inventory Capacity 3 | 3 . . . . . . . . . . . . . . . . . . . . . . . . . . . Sight Range 2 | . . . . . . . . . . . . . . . . . . . . . 2 . . . . . . Sensor Range 7 | . 2 . 2 . . . . . . . . . . . . . . . . . . . . . 3 . . Terrain Scan Density 6 | . 1 1 4 . . . . . . . . . . . . . . . . . . . . . . . . Ranged Accuracy 2 | . . . . . . . . . . . . . . . . . . . . . 2 . . . . . . Hack Attack % 5 | . . . 5 . . . . . . . . . . . . . . . . . . . . . . . . Hack Defense % 5 | . . . 1 2 . . 1 . . . . . . . . . . . . . . . . . . 1 . KI Resistance % 3 | . . . . 2 . . . . . . . . . . . . . . . . 1 . . . . . . TH Resistance % 2 | . . . . 1 . . . . . . . . . . . . . . . . . . . . 1 . . EX Resistance % 2 | . . . . . . . . . . . . . . . . . . . . . 1 . . . 1 . . Protomatter Created 1738 | . . 222 283 370 . 69 89 46 39 . 25 30 . . . . . 78 . . . . . 312 . 38 137 Integrity Restored 7378 | . . 255 628 772 . 574 341 638 116 120 225 273 150 . 504 . 201 450 427 312 96 . . 696 . 600 . Core 6046 | . . 214 396 772 . 393 308 362 110 120 225 273 150 . 504 . 201 232 266 244 96 . . 580 . 600 . Parts 1332 | . . 41 232 . . 181 33 276 6 . . . . . . . . 218 161 68 . . . 116 . . . Protomatter Decayed 7942 | . 58 150 23 119 35 26 89 283 471 580 23 460 . 431 950 447 . . 125 317 1150 . 213 710 542 589 151 Game ------ Seed CarbidePlexusStorm Manual? 0 Play Time 06:43:30 Cumulative 58.0 hours Start 2025.09.27 @ 09:24:46 End 2025.09.28 @ 14:47:42 Sessions 5 Manual Loads 0 Difficulty Explorer Special Mode Winter2019/RPGLIKE Game No. 12 Rogue 0 Adventurer 3 Explorer 9 Win Type - Total 7 Types 3/1/1/1/0/0/0/0/0/1 Lore% 45 Gallery% 36 Achievement% 50 Wizard Run 0 Options --------- Layout 2 ASCII 0 Keyboard 0 Movement Mouse Keybinds 0 Fullscreen 1 Font 24/Smallcaps Map View 50x44 Zoom Use 0% Tactical HUD 1 Map Filters NONE Filters NONE Steam 1 RUN: b1d2dbd6-877e-4eb0-aa70-836f1d9ec64e